Cogmind - Beta 16 @@@ ROGUE MODE // 2025.10.22 @ 21:42:13 Player: Cherman0 Result: Escaped! Performance ------------- Evolutions (9) 4500 Regions Visited (31) 6200 Robots Destroyed (643) 3215 Value Destroyed (29415) 29415 Prototype IDs (119) 2380 Alien Tech Used (0) 0 Bonus (29530) 29530 TOTAL SCORE: 75240 Bonus ------- Triggered High Security 1500 High Alert Combat Kills 12365 Follower Combat Kills 7217 Entered Garrisons 1600 Used RIF Installer 5000 Network Hubs Disabled 400 Aligned with FarCom 300 Met Zhirov 300 Built Enhanced Grunts 300 A7 Reached Mainframe 300 Met R17 at Cetus 500 Read Decrypted Archives 300 Met R17 at Research 2000 Win 3000 Friendly Fire -5552 Cogmind --------- Core Integrity 1094/1600 Matter 300/300 Energy 698/700 System Corruption 14% Temperature Cool (0) Movement Core (50) Location To Epsilon Eridani Parts ------- > --- POWER (3) -------- (None) > --- PROPULSION (6) --- (None) > --- UTILITY (13) ----- Experimental Energy Well Advanced Targeting Computer Long-range Tractor Beam > --- WEAPON (3) ------- (None) > --- INVENTORY (5) ---- Advanced Energy Well (500) Improved Matter Compressor (300) Null Cannon Tiamat Missile Launcher Peak State ------------ > --- POWER ------------ Graviton Reactor Graviton Reactor Quantum Reactor > --- PROPULSION ------- Centrium Heavy Treads Biometal Heavy Treads Biometal Heavy Treads > --- UTILITY ---------- Advanced Cryofiber Web Advanced Heat Sink Huge Storage Unit Advanced Targeting Computer Advanced Kinecellerator Advanced Weapon Cycler Experimental Transmission Jammer Centrium Medium Armor Plating Medium Regenerative Plating Graphene Brace Advanced Force Field Relay Coupler [NC] Sensor Drone Bay > --- WEAPON ----------- Null Cannon Advanced KE Penetrator Advanced KE Penetrator > --- INVENTORY -------- Quantum Reactor Improved Heavy Treads Advanced Heat Sink Advanced Heat Sink Advanced Energy Well Experimental Energy Well Improved Matter Compressor Precision Matter Filter Advanced Weapon Cycler Experimental EM Shield Relay Coupler [NC] Relay Coupler [Proto] Relay Coupler [Proto] Long-range Tractor Beam KE Penetrator Advanced KE Penetrator Advanced KE Penetrator Helical Railgun Tiamat Missile Launcher Advanced Remote Datajack Longsword +1 Deploy-a-Sentry Deploy-a-Sentry Deploy-a-Sentry [Rating: 211] Favorites ----------- Power Quantum Reactor Engine Ion Engine Power Core Fission Core Reactor Quantum Reactor Propulsion Light Treads Treads Light Treads Leg Carbon-fiber Leg Flight Unit Experimental Cesium-ion Thruster Utility Huge Storage Unit Device Advanced Heat Sink Storage Huge Storage Unit Processor Core Analyzer Hackware Relay Coupler [NC] Protection Medium Regenerative Plating Weapon Advanced KE Penetrator Energy Gun Precision Beam Rifle Energy Cannon Enhanced Nova Cannon Ballistic Gun Advanced KE Penetrator Ballistic Cannon Assault Cannon Launcher Mini Grenade Launcher Special Weapon Remote Datajack Slashing Weapon Longsword +1 Special Melee Weapon Datajack Build | -11 -10 -10 -10 -9 -8 -8 -8 -8 -7 -7 -7 -7 -7 -7 -6 -6 -6 -6 -6 -6 -6 -5 -5 -4 -4 -3 -3 -3 -2 -2 -1 ------- Run | Yrd Mat Min Exi Min Mat Gar Mat Gar Fac Was Fac Gar Fac Gar Fac Was Fac Ext Cet Arc Hub Fac Gar Fac Gar Res Tes Gar Res Gar Acc Slots Evolved 18 | . . . . . 4 . . . 2 . . . . . 2 . . . . . . 2 . 2 . 2 . . 2 . 2 Power 2 | . . . . . . . . . . . . . . . . . . . . . . 1 . . . . . . . . 1 Propulsion 4 | . . . . . 1 . . . 1 . . . . . . . . . . . . . . . . 2 . . . . . Utility 11 | . . . . . 2 . . . 1 . . . . . 2 . . . . . . 1 . 2 . . . . 2 . 1 Weapon 1 | . . . . . 1 . . . . . . . . . . . . . . . . . . . . . . . . . . Parts Attached 234 | 7 11 2 2 3 27 5 12 2 11 8 3 4 2 6 3 . 14 21 7 . 4 2 11 3 16 5 8 9 3 9 14 Power 28 | 1 1 . . 2 3 1 3 . . 1 . . . 1 . . 2 1 1 . . . 3 . 3 . 1 . 1 . 3 Engine 7 | 1 1 . . 2 1 . 2 . . . . . . . . . . . . . . . . . . . . . . . . Core 7 | . . . . . 2 1 1 . . . . . . . . . 2 1 . . . . . . . . . . . . . Reactor 14 | . . . . . . . . . . 1 . . . 1 . . . . 1 . . . 3 . 3 . 1 . 1 . 3 Propulsion 50 | 2 1 1 . . 7 2 5 . 5 2 . 2 . 3 . . 3 7 2 . . . 2 . 2 1 . . . 2 1 Treads 47 | 2 1 1 . . 7 2 5 . 5 2 . 2 . 3 . . 3 6 2 . . . 2 . 1 1 . . . 1 1 Leg 2 | . . . . . . . . . . . . . . . . . . 1 . . . . . . 1 . . . . . . Wheel . | . . . . . . . . . . . . . . . . . . . . . . . . . . . . . . . . Hover . | . . . . . . . . . . . . . . . . . . . . . . . . . . . . . . . . Flight 1 | . . . . . . . . . . . . . . . . . . . . . . . . . . . . . . 1 . Utility 90 | 2 4 1 1 1 5 1 1 1 5 1 2 1 1 2 2 . 4 8 2 . 1 2 4 2 6 4 4 7 2 5 8 Device 44 | 1 1 1 . 1 1 . . 1 2 . 1 1 . . . . 4 7 . . . . 3 . 4 2 2 3 1 3 5 Storage 9 | 1 2 . . . . . 1 . . . . . . . . . . . . . . . 1 . . 1 . . . 1 2 Processor 7 | . . . . . 1 . . . 1 . . . . . . . . 1 . . . . . 1 . 1 1 . . . 1 Hackware 16 | . . . . . . . . . 1 . . . . 1 2 . . . . . . 2 . 1 2 . 1 4 1 1 . Protection 14 | . 1 . 1 . 3 1 . . 1 1 1 . 1 1 . . . . 2 . 1 . . . . . . . . . . Artifact . | . . . . . . . . . . . . . . . . . . . . . . . . . . . . . . . . Weapon 66 | 2 5 . 1 . 12 1 3 1 1 4 1 1 1 . 1 . 5 5 2 . 3 . 2 1 5 . 3 2 . 2 2 Energy Gun 15 | 1 1 . . . 6 . 1 . . 2 . . . . . . 2 . . . . . 1 . . . 1 . . . . Energy Cannon 7 | . . . . . . . . . 1 1 1 . . . . . . . . . . . . . 3 . 1 . . . . Ballistic Gun 25 | 1 1 . . . 3 . . . . 1 . 1 . . 1 . 2 5 2 . 2 . 1 1 1 . . 1 . . 2 Ballistic Cannon 5 | . 1 . . . 2 . . . . . . . . . . . 1 . . . . . . . . . . . . 1 . Launcher 6 | . 1 . . . . 1 2 . . . . . . . . . . . . . 1 . . . . . . . . 1 . Special Weapon 6 | . 1 . . . . . . 1 . . . . 1 . . . . . . . . . . . 1 . 1 1 . . . Impact Weapon . | . . . . . . . . . . . . . . . . . . . . . . . . . . . . . . . . Slashing Weapon 1 | . . . . . 1 . . . . . . . . . . . . . . . . . . . . . . . . . . Piercing Weapon . | . . . . . . . . . . . . . . . . . . . . . . . . . . . . . . . . Special Melee Weapon 1 | . . . 1 . . . . . . . . . . . . . . . . . . . . . . . . . . . . Unidentified Prototypes 30 | . . 1 . 1 4 . 2 . 1 2 . . . . . . 2 . 3 . 2 . . . . 1 4 . . 7 . Corrupted Parts 4 | . . . . . . . . . . . . . . . . . . . 1 . 1 . 2 . . . . . . . . System Corruption 16 | . . . . . . . . . . . . . . . . . . . 5 . 1 . 10 . . . . . . . . Parts Lost 45 | . 1 . . . 5 1 1 . . . . . . 1 . . 7 4 . . . . 3 . . . . 1 . . 21 Power 8 | . 1 . . . 1 . . . . . . . . 1 . . 1 . . . . . . . . . . . . . 4 Propulsion 10 | . . . . . 1 . . . . . . . . . . . 2 2 . . . . 1 . . . . . . . 4 Utility 16 | . . . . . 1 . . . . . . . . . . . 2 1 . . . . 1 . . . . 1 . . 10 Weapon 11 | . . . . . 2 1 1 . . . . . . . . . 2 1 . . . . 1 . . . . . . . 3 Highest Loss Streak 13 | . 1 . . . 2 1 1 . . . . . . 1 . . 5 2 . . . . 1 . . . . 1 . . 13 To Critical Strikes 1 | . . . . . . . . . . . . . . . . . 1 . . . . . . . . . . . . . . Average Backups 20 | 2 12 25 24 22 20 21 21 22 21 20 18 18 17 17 17 18 17 18 17 18 18 17 20 20 20 21 22 20 19 20 19 Power . | . . . . . . 1 1 1 1 1 1 1 1 . 1 1 1 2 2 2 2 2 1 2 1 1 1 1 . 1 . Propulsion 2 | . 2 3 3 3 3 4 4 4 3 3 2 1 1 1 1 1 . 1 2 1 1 1 . 1 1 . . . 1 1 . Utility 8 | . 4 6 7 8 7 7 8 8 8 7 7 7 7 7 6 6 4 4 4 6 7 6 9 10 11 13 14 12 12 12 11 Weapon 7 | 1 5 14 13 9 8 8 7 8 7 8 7 7 7 7 7 9 8 8 7 7 6 6 5 4 5 5 5 5 4 5 5 Tool/Special . | . . . . . . . . . . . . . . . . . . . . . . . . . . . . . . . . Unused Backups 77 | . 1 . 4 3 12 2 2 3 1 5 2 1 1 . 1 . 3 3 4 1 1 . 6 . 6 1 1 4 . 1 8 Power 14 | . . . . . 1 . 2 . . 2 . . . . . . 2 . 1 . . . 2 . 1 . . . . . 3 Propulsion 7 | . . . . . 2 . . . . 1 1 1 . . . . . 1 1 . . . . . . . . . . . . Utility 32 | . . . . . 3 1 . 3 1 1 . . . . 1 . 1 1 1 1 1 . 1 . 5 1 1 4 . 1 4 Weapon 24 | . 1 . 4 3 6 1 . . . 1 1 . 1 . . . . 1 1 . . . 3 . . . . . . . 1 Tool/Special . | . . . . . . . . . . . . . . . . . . . . . . . . . . . . . . . . Average Slot Usage (%) 91 | . 99 100 100 100 99 99 99 100 99 93 84 83 84 83 85 86 87 92 90 86 79 81 86 87 89 84 84 84 85 85 83 Engine 3 | . 13 14 14 14 3 . 5 9 7 4 . . . . . . . . . . . . . . . . . . . . . Core 1 | . . . . . 5 9 3 . . . . . . . . . 3 6 . . . . . . . . . . . . . Reactor 4 | . . . . . . . . . . 2 7 7 7 6 6 6 2 . 5 6 6 5 9 10 10 9 9 9 7 8 11 Treads 19 | . 27 28 28 28 26 26 26 27 30 23 15 14 15 15 13 13 15 19 17 13 13 11 11 10 9 14 14 14 12 13 11 Device 13 | . 13 14 13 13 9 9 9 9 8 7 6 2 7 7 12 13 11 19 20 20 12 10 10 14 16 18 15 21 26 25 29 Storage 7 | . 14 14 14 14 8 9 9 9 7 7 7 7 7 7 6 6 6 6 6 6 6 5 5 5 5 4 4 4 4 4 4 Processor 5 | . . . . . 6 9 9 9 7 7 7 7 7 7 6 6 6 6 6 6 6 5 5 8 10 9 9 9 8 8 5 Hackware 4 | . . . . . . . . . 5 7 7 7 7 1 12 13 11 6 6 6 3 10 11 15 9 4 8 1 3 4 3 Protection 6 | . . . . . 10 9 9 9 7 7 7 12 7 12 7 6 8 6 6 6 9 10 11 5 10 8 8 8 8 8 6 Energy Gun 4 | . 9 . . . 14 17 16 16 15 9 5 4 . . . . . . . . . . . . . . . . . . . Ballistic Gun 14 | . 15 27 14 28 8 5 8 3 5 . 14 12 22 18 16 13 17 17 19 11 15 16 13 12 11 13 12 12 12 10 10 Slashing Weapon 1 | . . . . . . 3 . 5 . 4 . 3 . 3 . . 1 . . 4 3 . 1 . 2 . . 1 . 1 . Peak Build Rating 211 | 7 11 19 14 20 41 42 42 45 47 74 76 78 77 83 91 84 87 81 108 111 121 130 139 144 154 170 171 182 188 191 211 Average Rating 80 | 5 8 11 11 13 33 38 38 40 43 56 73 74 75 77 83 84 77 73 96 108 115 129 132 140 148 168 166 173 182 183 191 On Entrance 85 | . 7 11 11 14 18 37 39 39 45 42 69 72 72 77 76 87 84 77 77 108 108 121 130 135 144 150 170 166 176 188 182 Avg Prop Armor Cover (%) 3 | . . . . . . . . . . . . . . . . . . 3 . . . . . . . . . . . . . Naked Turns . | . . . . . . . . . . . . . . . . . . . . . . . . . . . . . . . . Heaviest Build 212 | 12 95 90 95 94 110 103 105 105 116 116 131 125 127 129 137 129 129 126 130 130 171 148 156 158 164 184 183 185 191 185 212 Greatest Support 230 | 40 40 40 40 40 60 60 60 60 80 140 140 150 150 150 150 150 150 133 160 160 160 160 160 160 160 230 230 230 230 230 230 Greatest Overweight (x) 2 | . 2 2 2 2 1 1 1 1 1 1 . 1 . . . . 1 1 1 . 1 . . . 1 . . . 1 1 1 Average Overweight (x) . | . . 2 2 2 . 1 1 1 1 . . . . . . . . . . . . . . . . . . . . . . Largest Inventory Capacity 25 | 8 25 25 25 25 25 25 25 25 25 25 25 25 25 25 25 25 25 25 25 25 25 25 25 25 25 25 25 25 25 25 25 Average Capacity 24 | 7 18 25 25 25 24 25 25 25 25 25 25 25 25 25 25 25 25 25 25 25 25 25 25 25 25 25 25 25 25 25 24 Most Carried 25 | 4 25 25 25 25 25 25 25 25 25 25 25 25 25 25 25 25 25 25 25 25 25 25 25 25 25 25 25 25 25 25 25 Average Carried 23 | 2 12 24 24 24 23 24 24 24 24 24 24 24 24 24 24 25 24 24 24 25 24 23 24 24 24 24 24 24 23 24 23 Final Capacity 25 | 8 25 25 25 25 25 25 25 25 25 25 25 25 25 25 25 25 25 25 25 25 25 25 25 25 25 25 25 25 25 25 5 Final Carried 25 | 4 25 25 25 25 25 25 25 25 25 25 25 25 25 25 25 25 25 25 25 25 25 24 25 25 25 25 25 25 25 25 4 Class Distribution -------------------- 22% | Mutant 15% | Scavenger-Tank 13% | Scavenger-Skirmisher 11% | Scavenger-Mutant 6% | Tank 6% | Scavenger-Gunner 5% | Botlord-Gunner 3% | Bothacker-Mutant 3% | Botlord-Tank 3% | Commander-Tank Dominant Class ---------------- Mutant | -10/Materials Mutant | -10/Mines Mutant | -10/Exiles Mutant | -9/Mines Scavenger-Skirmisher | -8/Materials Scavenger-Skirmisher | -8/Garrison Scavenger-Skirmisher | -8/Materials Scavenger-Mutant | -8/Garrison Scavenger-Gunner | -7/Factory Scavenger-Mutant | -7/Waste Scavenger-Tank | -7/Factory Scavenger-Tank | -7/Garrison Tank | -7/Factory Commander-Mutant | -7/Garrison Scavenger-Tank | -6/Factory Scavenger-Tank | -6/Waste Scavenger-Tank | -6/Factory Scavenger-Tank | -6/Extension Scavenger-Tank | -6/Cetus Commander-Mutant | -6/Archives Scavenger-Mutant | -6/Hub_04(d) Scavenger-Tank | -5/Factory Scavenger-Tank | -5/Garrison Bothacker-Gunner | -4/Factory Bothacker-Mutant | -4/Garrison Bothacker-Tank | -3/Research Bothacker-Tank | -3/Testing Bothacker-Gunner | -3/Garrison Botlord-Gunner | -2/Research Botlord-Gunner | -2/Garrison Botlord-Tank | -1/Access Resources | -11 -10 -10 -10 -9 -8 -8 -8 -8 -7 -7 -7 -7 -7 -7 -6 -6 -6 -6 -6 -6 -6 -5 -5 -4 -4 -3 -3 -3 -2 -2 -1 ----------- Run | Yrd Mat Min Exi Min Mat Gar Mat Gar Fac Was Fac Gar Fac Gar Fac Was Fac Ext Cet Arc Hub Fac Gar Fac Gar Res Tes Gar Res Gar Acc Matter Collected 24755 | 291 333 107 35 193 1094 395 588 354 434 133 88 482 398 1153 501 . 1977 1910 611 32 836 117 1616 126 1973 592 900 1301 348 1468 4369 Remotely 5679 | . . . . . . . . . . . . . . . . . . 1267 611 32 78 . 614 . 506 . . 111 150 . 2310 Salvage Created 31484 | 136 672 58 . 169 2364 694 1662 666 802 444 . 1169 574 1633 624 . 1970 1548 723 111 812 109 1910 84 1219 288 1267 1785 344 2043 5604 Parts 1526 | 10 50 9 . 9 128 37 87 22 49 10 . 65 28 68 31 . 91 76 35 10 53 14 89 2 62 9 77 103 11 94 197 Haulers Intercepted 17 | . 2 . . . 4 . 5 . 3 . . . 1 . . . 1 . . . 1 . . . . . . . . . . Recyclers Shooed 18 | . . . . . 6 . . . . . . . 1 . 2 . . 3 . . . . . . . . . . . . 6 Parts Field Recycled . | . . . . . . . . . . . . . . . . . . . . . . . . . . . . . . . . Retrieved Matter . | . . . . . . . . . . . . . . . . . . . . . . . . . . . . . . . . Parts Self-Destructed . | . . . . . . . . . . . . . . . . . . . . . . . . . . . . . . . . Prevented . | . . . . . . . . . . . . . . . . . . . . . . . . . . . . . . . . Parts Restored . | . . . . . . . . . . . . . . . . . . . . . . . . . . . . . . . . Kills | -11 -10 -10 -10 -9 -8 -8 -8 -8 -7 -7 -7 -7 -7 -7 -6 -6 -6 -6 -6 -6 -6 -5 -5 -4 -4 -3 -3 -3 -2 -2 -1 ------- Run | Yrd Mat Min Exi Min Mat Gar Mat Gar Fac Was Fac Gar Fac Gar Fac Was Fac Ext Cet Arc Hub Fac Gar Fac Gar Res Tes Gar Res Gar Acc Combat Hostiles Destroyed 500 | . 12 6 . . 41 20 26 16 11 . . 18 12 33 9 . 24 21 3 . 8 . 38 1 41 4 13 22 4 30 87 Melee 9 | . . . . . . 2 . 2 . . . . . 1 . . . . . . 3 . . . 1 . . . . . . Guns 375 | . 12 4 . . 29 10 20 12 11 . . 3 9 20 7 . 22 21 3 . 5 . 35 1 21 4 13 22 4 27 60 Cannons 8 | . . . . . 6 . . . . . . . . . . . . . . . . . . . . . . . . . 2 AOE 106 | . . 2 . . 5 7 6 2 . . . 15 3 12 2 . 2 . . . . . 3 . 19 . . . . 3 25 Classes Destroyed 25 | 2 6 . . . 4 . 3 1 . 1 . 1 1 . 1 . . . . . . . . . 1 . 1 . . . 3 Worker 32 | . 2 . . . 3 . 1 . 1 . . . . . 2 . 1 . . . 5 4 . . . . . . . . 13 Builder 20 | . 1 . . . 2 . . . 1 . . . 1 . . . 3 1 . . 3 1 . . . . 3 . . . 4 Tunneler 4 | 2 1 1 . . . . . . . . . . . . . . . . . . . . . . . . . . . . . Hauler 17 | . 2 . . . 4 . 5 . 3 . . . 1 . . . 1 . . . 1 . . . . . . . . . . Recycler 26 | 1 1 . . 1 5 . 3 . 2 . . . . . 1 . 3 2 . . 1 . . . . . . . . . 6 Mechanic 2 | . . . . . . . . . . . . . . . 2 . . . . . . . . . . . . . . . . Operator 7 | . . . . . . . 1 . . . . . . . 2 . 1 1 . . 1 . . . . . . . 1 . . Drone 21 | . . . . . . . . . . . . . . . . . . . . . . . . . . . . . . . 21 Watcher 15 | . 2 . . . 3 . 4 . . . . . . . 1 . 1 . . . 1 . . . 1 . 1 . . . 1 Swarmer 142 | . 3 6 . . 7 6 3 4 . . . 12 1 13 1 . 8 5 . . 3 . 13 . 25 . . 10 . 12 10 Cutter 6 | . . . . . . . . . . . . . . . . . . . . . . . . . 4 . . 2 . . . Saboteur 1 | . . . . . . . . . . . . . . . . . . . . . . . . . . . . . . . 1 Grunt 171 | . 9 . . . 23 6 15 5 9 . . 4 8 11 5 . 9 6 . . . . 13 . . 4 5 4 2 4 29 Brawler 11 | . . . . . . . 1 2 . . . . . 1 . . . . . . . . 1 . 2 . . . . 1 3 Duelist 8 | . . . . . . . 1 2 . . . . . . . . . . . . . . 4 . . . . . . . 1 Protector 2 | . . . . . . . . . . . . . 1 . . . . . . . . . . . . . . . . . 1 Researcher 3 | . . . . . . . . . . . . . . . . . . . . . . . . . . . 3 . . . . Sentry 56 | . . . . . 7 2 6 . 1 . . . 2 2 . . 4 5 . . 2 . 4 1 6 . . 2 1 8 3 Demolisher 2 | . . . . . . . . . . . . . . . 1 . . . . . . . . . . . . . 1 . . Specialist 8 | . . . . . 2 . . . . . . . . 1 . . . . . . . . 1 . 1 . . . . 3 . Hunter 26 | . . . . . 1 6 . 1 . . . . . 2 . . . 3 . . . . 1 . 1 . 4 1 . . 6 Programmer 32 | . . . . . . . . 2 1 . . . . 3 2 . 2 . . . 1 . . . 2 . 4 2 . 2 11 Heavy 1 | . . . . . 1 . . . . . . . . . . . . . . . . . . . . . . . . . . Behemoth 8 | . . . . . . . . . . . . 2 . . . . 1 2 . . . . 1 . . . . 1 . 1 . Cetus Guard 3 | . . . . . . . . . . . . . . . . . . . 3 . . . . . . . . . . . . Enhanced Grunt 1 | . . . . . . . . . . . . . . . . . . . . 1 . . . . . . . . . . . Lightning 2 | . . . . . . . . . . . . . . . . . . . . . 2 . . . . . . . . . . Striker 2 | . . . . . . . . . . . . . . . . . . . . . . . . . . . . . . . 2 Thug 7 | . . . . 2 . . . . . . . . . 1 . . . . 4 . . . . . . . . . . . . Savage 1 | . . . . . . . . . . . . . . . . . . 1 . . . . . . . . . . . . . Butcher 2 | . . . . . . . . . . . . . . . . . . . 2 . . . . . . . . . . . . Martyr 2 | . . . . . . . . . . 2 . . . . . . . . . . . . . . . . . . . . . Guerrilla 1 | . . . . . . . . . . . . . . . . . . 1 . . . . . . . . . . . . . Infiltrator 1 | . . . . . . . . . . . . . . . . . . . . . . . . . . . 1 . . . . Best Kill Streak 25 | 2 3 3 . 1 6 5 6 5 4 . . 10 7 9 6 . 6 4 2 . 5 4 15 1 21 3 5 5 2 5 25 Combat Bots Only 21 | . 3 3 . . 4 5 5 5 3 . . 10 6 9 4 . 6 4 2 . 3 . 15 1 21 3 5 5 2 5 12 Max Kills in Single Turn 6 | 1 2 2 . 1 2 3 2 2 2 1 . 4 2 4 6 . 2 2 2 1 1 1 3 1 3 1 2 3 2 2 4 Gunslinging 1 | . . . . . . . 1 . . . . . 1 1 . . . 1 . . . . 1 . 1 . . . . 1 1 Exploded 4 | . . 2 . . 2 3 2 2 . . . 4 2 4 2 . 2 . . . . . 3 . 3 . . . . 2 4 Melee 1 | . . . . . . 1 . 1 . . . . . 1 . . . . . . 1 . . . 1 . . . . . . Uniques/NPCs Destroyed 1 | . . . . . . . . . . . . . . . . . . . 1 . . . . . . . . . . . . A7 (-6/Cetus) Combat | -11 -10 -10 -10 -9 -8 -8 -8 -8 -7 -7 -7 -7 -7 -7 -6 -6 -6 -6 -6 -6 -6 -5 -5 -4 -4 -3 -3 -3 -2 -2 -1 -------- Run | Yrd Mat Min Exi Min Mat Gar Mat Gar Fac Was Fac Gar Fac Gar Fac Was Fac Ext Cet Arc Hub Fac Gar Fac Gar Res Tes Gar Res Gar Acc Hostile Shots Fired 2416 | . 75 29 . . 125 52 47 37 29 . 2 26 38 113 21 . 213 178 8 . 194 4 175 2 216 4 59 51 12 85 621 Missed 641 | . 16 10 . . 35 15 13 5 10 . 2 6 21 26 7 . 59 67 1 . 26 1 46 . 61 . 23 16 2 22 151 Hits 1775 | . 59 19 . . 90 37 34 32 19 . . 20 17 87 14 . 154 111 7 . 168 3 129 2 155 4 36 35 10 63 470 Melee 10 | . . . . . . . . 2 . . . . . . . . . . . . . . . . 5 . . . . . 3 Projectile 1765 | . 59 19 . . 90 37 34 30 19 . . 20 17 87 14 . 154 111 7 . 168 3 129 2 150 4 36 35 10 63 467 AOE 11 | . . . . . . . . . . . . . . . . . . . . . . . . . 3 . . 1 1 . 6 Critical Strikes 136 | . . . . . 5 1 . 1 1 . . 1 . 3 . . 3 2 2 . 31 . 1 1 8 1 2 1 1 1 70 Actively Blocked 53 | . . . . . . . . . . . . . . . . . . . . . . . . . . . . . . . 53 Part Disruptions 5 | . . . . . . . . . . . . . . . . . . . . . . . . . . . . . . . 5 Damage Taken 23655 | . 636 147 . . 1545 552 563 512 257 . 20 519 200 1222 510 . 2003 1508 173 . 726 44 2512 47 1809 87 240 506 122 714 6481 Core 1986 | . 120 41 . . 326 36 24 94 . . 20 22 10 40 56 . 129 115 28 . 42 . 103 . 198 . . 19 . 57 506 Absorbed by Shields 4760 | . . . . . . 48 . . . . . . . 21 . . . 96 14 . . . . . 394 89 236 362 129 744 2627 Reduced by Siege Mode 542 | . . . . . . . . . . . . 29 . 4 . . 27 6 . . 16 . 121 . 77 . . 6 . 5 251 Ignored by Resistances 6963 | . . . . . . . . . . . . . . . . . . . . . 4838 . . . 124 . 183 . . 115 1703 Regen/Repaired (Parts) 5376 | . 90 . . . 294 . 209 . . 58 . 132 35 514 53 . 380 217 20 42 47 42 469 766 174 226 134 29 725 127 593 Core Remaining (%) 72 | 100 . . . 35 . . . 12 . . . . . 86 . . . . . . 56 . 89 . 82 . . 98 . 96 68 Volleys Fired 1623 | 7 78 9 . 13 127 39 70 39 38 . 8 26 24 69 40 5 97 136 41 4 74 . 83 3 137 17 66 67 16 84 206 Largest 3 | 2 2 2 . 2 3 3 3 3 3 . 1 3 3 3 3 1 3 3 3 1 3 . 3 3 3 3 3 3 3 3 3 Hottest 150 | 60 100 40 . 40 150 147 147 147 147 . 81 131 75 75 75 5 75 83 101 35 105 . 105 105 120 120 120 130 105 130 130 Shots Fired 3633 | 14 140 16 . 26 307 86 185 80 96 . 8 57 62 177 94 5 252 302 99 4 120 . 204 7 243 35 134 142 31 215 492 Gun 3219 | 14 127 14 . 26 259 79 178 65 88 . 3 48 57 161 89 . 239 259 98 3 119 . 187 6 174 27 108 119 27 199 446 Cannon 111 | . 1 . . . 37 . . . . . 5 . . . . . 5 . . . . . . . 18 6 14 11 . 8 6 Launcher 101 | . . 2 . . 5 7 7 3 . . . 9 2 8 . . 1 . . . . . 5 . 19 . . . . 3 30 Special 202 | . 12 . . . 6 . . 12 8 . . . 3 8 5 5 7 43 1 1 1 . 12 1 32 2 12 12 4 5 10 Kinetic 2766 | 7 68 14 . 26 154 27 62 16 31 . . 38 57 161 89 . 244 259 98 3 119 . 187 6 174 27 108 119 27 199 446 Thermal 569 | 7 72 . . . 137 50 116 49 57 . 8 10 . . . . . . . . . . . . 18 6 14 11 . 8 6 Explosive 101 | . . 2 . . 5 7 7 3 . . . 9 2 8 . . 1 . . . . . 5 . 19 . . . . 3 30 Electromagnetic 13 | . . . . . 11 2 . . . . . . . . . . . . . . . . . . . . . . . . . Robot Hit Streak 40 | 5 11 6 . 18 31 15 23 33 35 . 4 31 8 12 10 4 18 20 12 9 12 . 35 21 35 38 17 15 5 31 40 Robot Miss Streak 9 | 2 3 2 . 1 4 3 2 2 3 . . 1 3 4 2 1 5 5 4 . 5 . 3 3 3 2 4 3 1 5 9 Penetration Max 2 | . . . . . 1 . . . . . . . . . . . . 2 2 . 1 . 1 . 1 1 1 2 . 1 2 Secondary Targets 79 | . 1 . . . 1 2 4 3 1 . . 1 4 7 . . 4 3 . . 1 . 11 . 7 . 1 3 1 6 18 Max Gunslinging Chain 2 | . 1 . . . 1 1 1 1 1 . . 1 2 1 . . 1 1 . . 1 . 2 . 2 . 1 1 1 1 1 Shots Hit Robots 2503 | 11 86 7 4 23 214 57 129 73 67 13 1 47 40 120 57 4 170 211 66 4 93 5 130 3 164 19 85 100 19 138 343 Core Hits 1305 | 5 35 9 . 10 105 35 71 30 29 3 1 39 21 68 33 . 81 81 33 3 43 1 75 1 86 10 40 48 9 61 239 Critical Kills 78 | . 1 . . . . . . . . . . . . 1 . . . 1 7 . 1 . 8 1 5 2 6 8 3 7 27 Critical Parts Destroyed 109 | . . . . . 1 . . . . . . . . 1 . . . 6 18 . 6 . 12 . 12 . 7 3 3 18 22 Critical Strikes 253 | . 4 . . . 11 3 13 7 4 . . . . 4 . . . 9 32 . 8 . 22 1 21 2 13 16 6 27 50 Burn 38 | . 3 . . . 10 3 13 5 4 . . . . . . . . . . . . . . . . . . . . . . Destroy 205 | . 1 . . . 1 . . . . . . . . 2 . . . 9 32 . 7 . 22 1 17 2 13 15 6 27 50 Sever 10 | . . . . . . . . 2 . . . . . 2 . . . . . . 1 . . . 4 . . 1 . . . Melee Attacks 392 | . . . 4 . . 22 6 35 . 13 5 33 . 60 5 . 21 6 . 12 20 6 27 2 43 . 3 49 . 16 4 Impact . | . . . . . . . . . . . . . . . . . . . . . . . . . . . . . . . . Slashing 388 | . . . . . . 22 6 35 . 13 5 33 . 60 5 . 21 6 . 12 20 6 27 2 43 . 3 49 . 16 4 Piercing . | . . . . . . . . . . . . . . . . . . . . . . . . . . . . . . . . Sneak Attacks 37 | . . . 4 . . 2 . 1 . 4 . . . . . . 3 6 . 2 8 5 . . 1 . 1 . . . . Combat Hostiles 1 | . . . . . . . . 1 . . . . . . . . . . . . . . . . . . . . . . . Follow-up Attacks . | . . . . . . . . . . . . . . . . . . . . . . . . . . . . . . . . Damage Inflicted 79599 | 137 1169 253 . 344 4275 1576 2740 2020 1190 778 73 2823 1130 4408 1906 . 3840 3468 1515 298 3400 504 4088 51 5625 468 2317 4703 612 5638 18250 Guns 52176 | 133 1089 107 . 331 3170 896 2214 880 1190 . 45 601 696 1687 1017 . 2889 2926 1515 . 2053 . 3696 51 2953 468 2069 2712 612 5230 10946 Cannons 998 | . . . . . 657 . . . . . 28 . . . . . . . . . . . . . . . 128 . . . 185 Explosions 15606 | . . 107 . . 441 477 510 396 . . . 1012 434 1187 889 . 167 . . . . . 392 . 2087 . . . . 408 7099 Melee 10273 | . . . . . . 192 . 744 . 778 . 1210 . 1528 . . 649 472 . 298 1271 481 . . 565 . 108 1977 . . . Ramming 546 | 4 80 39 . 13 7 11 16 . . . . . . 6 . . 135 70 . . 76 23 . . 20 . 12 14 . . 20 Kinetic 46646 | 69 587 107 . 331 1989 271 781 193 348 . . 450 696 1687 1017 . 2889 2926 1515 . 2053 . 3696 51 2953 468 2069 2712 612 5230 10946 Thermal 7436 | 64 502 . . . 1764 625 1433 687 842 . 73 151 . . 889 . . . . . . . . . . . 128 . . . 278 Explosive 14587 | . . 107 . . 404 477 510 396 . . . 1012 434 1187 . . 167 . . . . . 392 . 2087 . . . . 408 7006 Electromagnetic 111 | . . . . . 111 . . . . . . . . . . . . . . . . . . . . . . . . . . Impact . | . . . . . . . . . . . . . . . . . . . . . . . . . . . . . . . . Slashing 10273 | . . . . . . 192 . 744 . 778 . 1210 . 1528 . . 649 472 . 298 1271 481 . . 565 . 108 1977 . . . Piercing . | . . . . . . . . . . . . . . . . . . . . . . . . . . . . . . . . Highest Corruption 21 | . . . . . . . . 1 1 1 1 . . 1 1 17 17 7 12 12 21 . 10 . . 1 1 1 . . 14 Average Corruption 5 | . . . . . . . . 1 1 1 1 . . 1 1 12 10 7 7 12 13 . 8 . . 1 1 1 . . 10 Corruption Purged 13 | . . . . . . . . . . . 1 . . . . . 12 . . . . . . . . . . . . . . Corruption Blocked . | . . . . . . . . . . . . . . . . . . . . . . . . . . . . . . . . Effects 360 | . . . . . . . . 10 3 6 . . . 8 7 8 84 62 23 1 48 . 43 . . . 6 14 . . 37 Message Errors 78 | . . . . . . . . 1 . 2 . . . . 1 1 18 13 7 1 9 . 10 . . . . 4 . . 11 Matter Fused 68 | . . . . . . . . . . 3 . . . 2 2 . 17 9 4 . 9 . 9 . . . 2 4 . . 7 Heat Flow Errors 38 | . . . . . . . . 4 1 . . . . . 3 1 6 9 2 . 5 . 4 . . . . 2 . . 1 Energy Discharges 45 | . . . . . . . . 2 . . . . . 2 1 1 9 6 5 . 7 . 5 . . . 2 2 . . 3 Parts Rejected 3 | . . . . . . . . . . . . . . . . . 2 1 . . . . . . . . . . . . . Parts Fused 5 | . . . . . . . . . . . . . . . . . 1 . 1 . 2 . . . . . . 1 . . . Data Loss (minor) 51 | . . . . . . . . 2 . . . . . 2 . 3 14 8 2 . 7 . 8 . . . 1 . . . 4 Data Loss (major) 15 | . . . . . . . . . . . . . . . . . 4 5 1 . 3 . 2 . . . . . . . . Misfires 19 | . . . . . . . . 1 2 . . . . 2 . . 3 4 1 . 2 . 2 . . . . . . . 2 Alerts 10 | . . . . . . . . . . 1 . . . . . 2 4 1 . . . . 1 . . . 1 . . . . Misdirections 2 | . . . . . . . . . . . . . . . . . . . . . 1 . . . . . . . . . 1 Weapon Failures 26 | . . . . . . . . . . . . . . . . . 6 6 . . 3 . 2 . . . . 1 . . 8 Overload Shots . | . . . . . . . . . . . . . . . . . . . . . . . . . . . . . . . . Overflow Damage 1312 | . 4 . . . 9 . . 78 . 142 . 9 8 54 147 . 69 . . . 147 232 . . 79 . 4 109 . . 221 Projectiles 13 | . . . . . 9 . . . . . . . . . . . . . . . . . . . . . 4 . . . . Explosions 471 | . . . . . . . . . . . . . 8 38 147 . 7 . . . . . . . 50 . . . . . 221 Melee 828 | . 4 . . . . . . 78 . 142 . 9 . 16 . . 62 . . . 147 232 . . 29 . . 109 . . . Knockbacks 11 | . . . . . 8 . . . . . . . . . . . 1 2 . . . . . . . . . . . . . Impact 3 | . . . . . . . . . . . . . . . . . 1 2 . . . . . . . . . . . . . Kinetic 8 | . . . . . 8 . . . . . . . . . . . . . . . . . . . . . . . . . . Secondary . | . . . . . . . . . . . . . . . . . . . . . . . . . . . . . . . . Self-Inflicted Damage 587 | . . . . . 16 32 42 . . . . 1 . 6 225 . . . . . . . . . 37 . . . . 26 202 Shots 16 | . . . . . 1 1 1 . . . . 1 . 1 2 . . . . . . . . . 2 . . . . 1 6 Rammed 54 | 3 13 5 . 3 3 1 1 . . . . . . 1 . . 7 6 . . 4 1 . . 2 . 1 1 . . 2 Targets Rammed 56 | 3 13 6 . 3 3 1 1 . . . . . . 1 . . 7 6 . . 5 1 . . 2 . 1 1 . . 2 Kicked . | . . . . . . . . . . . . . . . . . . . . . . . . . . . . . . . . Crushed 2 | . . 1 . . . . . . . . . . . . . . . . . . 1 . . . . . . . . . . Highest Temperature 448 | . 222 . . . 183 310 171 229 333 . 100 297 68 102 213 142 218 235 106 . 448 . 247 35 72 64 210 188 . . 100 Average Temperature 74 | . 54 . . . 49 104 52 58 95 . 43 95 36 37 85 74 44 53 63 . 158 . 66 19 14 24 50 55 . . 40 Received Heat Transfer 4669 | . 294 . . . 558 198 243 108 114 . 9 90 66 144 54 . 513 246 . . 81 . 450 27 106 14 20 51 24 256 1003 Effects 6 | . . . . . . . . . . . . 1 . . 2 . . . . . 3 . . . . . . . . . . Energy Bleed 2 | . . . . . . . . . . . . 1 . . . . . . . . 1 . . . . . . . . . . Interference 4 | . . . . . . . . . . . . . . . 2 . . . . . 2 . . . . . . . . . . Siege Activations 32 | . . . . . . . . . . . . 1 1 1 . . 4 3 . . 1 . 4 . 6 . . 4 . 3 4 Total Turns 700 | . . . . . . . . . . . . 26 4 30 . . 28 31 . . 201 . 69 . 95 . . 66 . 24 126 Longest Duration 201 | . . . . . . . . . . . . 26 4 30 . . 14 21 . . 201 . 26 . 49 . . 23 . 15 66 Martial Activations . | . . . . . . . . . . . . . . . . . . . . . . . . . . . . . . . . Shielding Activations . | . . . . . . . . . . . . . . . . . . . . . . . . . . . . . . . . Robots Disrupted . | . . . . . . . . . . . . . . . . . . . . . . . . . . . . . . . . Combat Hostiles . | . . . . . . . . . . . . . . . . . . . . . . . . . . . . . . . . Robots Corrupted 3 | . 1 . . . . . . . . . . . . . . . 1 . . . 1 . . . . . . . . . . Combat Hostiles . | . . . . . . . . . . . . . . . . . . . . . . . . . . . . . . . . Parts Fried 7 | . 3 . . . . . . . . . . . . . 1 . . . . . 2 . . . . . 1 . . . . Impact Corruptions 4 | . 1 . . . . . . . . . . . . . . . 2 . . . 1 . . . . . . . . . . Robots Melted 2 | . . . . . 1 1 . . . . . . . . . . . . . . . . . . . . . . . . . Combat Hostiles 2 | . . . . . 1 1 . . . . . . . . . . . . . . . . . . . . . . . . . Parts Melted 35 | . 3 . . . 5 6 4 6 2 . . . . 1 2 . . 3 . . 1 . 2 . . . . . . . . Heat Transferred 16535 | 150 1501 . . . 4218 1591 4033 1776 2072 . 111 222 . . 600 . . . . . . . . . . . 111 . . . 150 Parts Sabotaged 3 | . . . . . . . . . . . . . . . . . . . . . . . . . . . . . . . 3 Parts Stolen . | . . . . . . . . . . . . . . . . . . . . . . . . . . . . . . . . Parts Stripped . | . . . . . . . . . . . . . . . . . . . . . . . . . . . . . . . . Power Chain Reactions 1 | . . . . . 1 . . . . . . . . . . . . . . . . . . . . . . . . . . Alert | -11 -10 -10 -10 -9 -8 -8 -8 -8 -7 -7 -7 -7 -7 -7 -6 -6 -6 -6 -6 -6 -6 -5 -5 -4 -4 -3 -3 -3 -2 -2 -1 ------- Run | Yrd Mat Min Exi Min Mat Gar Mat Gar Fac Was Fac Gar Fac Gar Fac Was Fac Ext Cet Arc Hub Fac Gar Fac Gar Res Tes Gar Res Gar Acc Maximum Alert Level 5 | . . . . . 1 3 2 3 2 . 2 4 3 5 3 1 1 2 2 . 3 2 4 3 5 5 5 5 4 5 5 Low Security (%) 39 | 100 100 100 . 100 90 . 58 . . 100 12 . . . . . 77 70 . 100 15 60 14 . . . . . . . . Level 1 10 | . . . . . 9 14 15 11 48 . 83 6 . . . 100 22 10 67 . 6 . 12 . . . . . . . . Level 2 10 | . . . . . . 27 25 38 51 . 3 27 50 16 . . . 18 32 . 18 40 12 20 8 . . . . . . Level 3 13 | . . . . . . 57 . 49 . . . 20 49 13 100 . . . . . 58 . 33 80 24 . . . . 7 . Level 4 16 | . . . . . . . . . . . . 45 . 50 . . . . . . . . 26 . 21 76 86 26 100 57 75 Level 5 7 | . . . . . . . . . . . . . . 19 . . . . . . . . . . 45 9 3 73 . 34 . High Security 1 | . . . . . . . . . . . . . . . . . . . . . . . . . . 14 9 . . . 23 Max Security . | . . . . . . . . . . . . . . . . . . . . . . . . . . . . . . . . Peak Influence 2676 | 10 115 72 . 5 370 1018 495 937 508 137 414 1571 830 1792 1076 336 300 641 466 121 1060 511 1467 801 2283 1825 1707 2401 1226 1930 2676 Initial 1284 | . . 19 . . . 237 495 279 491 137 . 184 824 563 940 336 165 124 343 106 34 511 11 770 494 1284 1100 1280 1210 887 1157 Average 628 | 1 30 10 . . 80 671 246 640 401 17 276 990 694 1234 965 288 139 218 368 104 711 214 780 737 1436 1393 1352 1903 1175 1474 1480 Influence Increases 23924 | 15 469 169 . 5 1317 791 873 718 362 . 770 1487 473 1299 501 . 818 1337 322 42 1555 90 1506 272 1879 823 1023 1217 225 1063 2503 Destroy 0b10 Robot/C 11745 | . 240 120 . . 820 400 520 400 220 . 300 660 240 720 280 . 500 700 160 . 560 . 840 105 855 285 450 690 75 540 1065 Destroy 0b10 Robot/NC 758 | 15 45 5 . 5 90 . 70 5 35 . 5 30 30 20 35 . 60 35 . 5 75 25 . . 8 4 16 24 . . 116 Destroy Leader 1696 | . 68 20 . . 206 20 158 40 56 . 60 20 56 50 52 . 104 82 . . 154 . 40 40 48 48 50 56 24 48 196 Allied During Kill 3483 | . . . . . 1 . . 19 . . 365 566 120 81 24 . 8 406 136 5 564 . 108 49 222 337 143 195 28 72 34 Trap Triggered on 0b10 10 | . . . . . . . 10 . . . . . . . . . . . . . . . . . . . . . . . . Successful Hack 815 | . 29 12 . . 17 . 24 28 14 . 31 . 7 . . . 47 35 . . . 65 51 64 29 45 166 23 38 60 30 Select Force Hacks 120 | . 60 . . . 60 . . . . . . . . . . . . . . . . . . . . . . . . . . Disable Machine 627 | . . . . . . 15 . . 15 . . . . . 45 . . 60 15 30 120 . 75 . 24 12 60 . 12 60 84 Anti-Garrison Action 1615 | . . . . . . 250 . 150 . . . 150 . 250 . . . . . . . . 250 . 339 . . 113 . 113 . Destroy Structure 2353 | . 12 12 . . 48 76 61 46 7 . 9 61 20 133 50 . 24 4 11 2 67 . 112 14 222 92 54 116 48 170 882 Partial Spotted 15 | . . . . . . . . . . . . . . . . . . 15 . . . . . . . . . . . . . Lose Combat Pursuer 687 | . 15 . . . 75 30 30 30 15 . . . . 45 15 . 75 . . . 15 . 30 . 132 . 84 . . . 96 Influence Decreases 21322 | 15 419 219 . 5 952 138 1461 211 906 393 506 180 1239 312 1332 725 799 978 669 211 610 1116 56 1033 302 1281 1215 772 1194 316 1757 Entered New Map 10462 | . . 31 . . . 128 523 151 446 256 . 80 747 242 852 625 71 131 271 161 64 532 6 697 212 999 799 427 942 296 773 Time Decay 7157 | 15 399 188 . 5 534 . 618 . 440 137 386 . 262 . 470 100 558 607 318 50 412 148 . 206 . 222 286 . 222 . 574 Lost Part 430 | . 10 . . . 30 10 10 . . . . . . 10 . . 70 40 . . . . 30 . . . . 10 . . 210 Lost Ally 1754 | . 10 . . . 20 . 10 60 20 . 120 100 80 60 10 . 100 200 80 . 134 10 20 130 90 60 130 60 30 20 200 Purge Threat 1519 | . . . . . 368 . 300 . . . . . 150 . . . . . . . . 426 . . . . . 275 . . . Squads Dispatched 96 | . 4 . . . 6 . 3 . 6 . 3 . 2 . 5 . 10 3 . . 11 . . 4 . 7 7 . 3 . 22 Investigation 17 | . 4 . . . 2 . . . 2 . . . . . 1 . 2 1 . . . . . 1 . 3 . . . . 1 Extermination 15 | . . . . . . . . . 2 . 1 . . . 2 . 3 . . . 2 . . . . . 1 . 1 . 3 Reinforcement 30 | . . . . . 4 . 2 . 2 . 2 . 1 . 2 . 2 2 . . 4 . . . . 4 4 . . . 1 Assault 21 | . . . . . . . . . . . . . 1 . . . . . . . 1 . . . . . 2 . . . 17 Garrison 13 | . . . . . . . 1 . . . . . . . . . 3 . . . 4 . . 3 . . . . 2 . . Intercept . | . . . . . . . . . . . . . . . . . . . . . . . . . . . . . . . . Searches Triggered . | . . . . . . . . . . . . . . . . . . . . . . . . . . . . . . . . Unchained Authorized 3 | . . . . . . . . . . . . . . . . . . . . . . . . 1 . . . . 1 . 1 Construction Impeded 3 | . . . . . . . . . . . . . . . . . . 1 . . 1 . . . . 1 . . . . . Haulers Reinforced 3 | . . . . . . . . . 2 . . . 1 . . . . . . . . . . . . . . . . . . Active Scanning Responses . | . . . . . . . . . . . . . . . . . . . . . . . . . . . . . . . . Cargo Convoy Interrupts . | . . . . . . . . . . . . . . . . . . . . . . . . . . . . . . . . Alert ID Control Effect 1 | . . . . . . . . . . . . . . . . . . . . . . . . . 1 . . . . . . Stealth | -11 -10 -10 -10 -9 -8 -8 -8 -8 -7 -7 -7 -7 -7 -7 -6 -6 -6 -6 -6 -6 -6 -5 -5 -4 -4 -3 -3 -3 -2 -2 -1 --------- Run | Yrd Mat Min Exi Min Mat Gar Mat Gar Fac Was Fac Gar Fac Gar Fac Was Fac Ext Cet Arc Hub Fac Gar Fac Gar Res Tes Gar Res Gar Acc Distress Signals 31 | . 2 . . . 5 . 3 . 1 . 2 . 1 . 1 . . 2 . . 6 . . . . 6 . . . . 2 Communications Jammed 124 | . . . . . . . . . . . . . . . . . . . . . . . . . . . 56 . 29 . 39 Distress Signals 123 | . . . . . . . . . . . . . . . . . . . . . . . . . . . 56 . 29 . 38 Times Spotted 753 | . 27 6 . . 47 12 35 18 14 . 6 15 17 27 29 6 41 41 11 . 43 7 36 4 59 22 35 32 7 29 127 Peak Tracking Total 16 | . 5 3 . . 4 4 4 3 3 . 4 5 5 7 4 4 6 4 5 . 7 5 8 2 16 5 6 6 4 5 10 Tactical Retreats 30 | . 1 . . . 3 1 2 2 1 . . . . 1 1 . 4 . . . 1 . 1 . 5 . 4 . . . 3 Traps | -11 -10 -10 -10 -9 -8 -8 -8 -8 -7 -7 -7 -7 -7 -7 -6 -6 -6 -6 -6 -6 -6 -5 -5 -4 -4 -3 -3 -3 -2 -2 -1 ------- Run | Yrd Mat Min Exi Min Mat Gar Mat Gar Fac Was Fac Gar Fac Gar Fac Was Fac Ext Cet Arc Hub Fac Gar Fac Gar Res Tes Gar Res Gar Acc Traps Triggered 20 | . 1 . . . . 3 . 1 2 . . 1 . . 1 . . 1 . . . . . . 6 . 1 2 . 1 . Indirectly . | . . . . . . . . . . . . . . . . . . . . . . . . . . . . . . . . Trap Hack Attempts 39 | . . . . . . . 39 . . . . . . . . . . . . . . . . . . . . . . . . Triggered . | . . . . . . . . . . . . . . . . . . . . . . . . . . . . . . . . Disarmed . | . . . . . . . . . . . . . . . . . . . . . . . . . . . . . . . . Reprogrammed 4 | . . . . . . . 4 . . . . . . . . . . . . . . . . . . . . . . . . Reused 1 | . . . . . . . 1 . . . . . . . . . . . . . . . . . . . . . . . . Traps Extracted . | . . . . . . . . . . . . . . . . . . . . . . . . . . . . . . . . Installed . | . . . . . . . . . . . . . . . . . . . . . . . . . . . . . . . . Triggered 1 | . . . . . . . 1 . . . . . . . . . . . . . . . . . . . . . . . . Machines | -11 -10 -10 -10 -9 -8 -8 -8 -8 -7 -7 -7 -7 -7 -7 -6 -6 -6 -6 -6 -6 -6 -5 -5 -4 -4 -3 -3 -3 -2 -2 -1 ---------- Run | Yrd Mat Min Exi Min Mat Gar Mat Gar Fac Was Fac Gar Fac Gar Fac Was Fac Ext Cet Arc Hub Fac Gar Fac Gar Res Tes Gar Res Gar Acc Machines Disabled 76 | . 1 . . . . 4 . 3 1 . . 2 . 4 3 . . 4 1 2 8 . 10 . 6 1 5 3 1 10 7 Max in Single Turn 3 | . 1 . . . . 1 . 1 . . . 1 . 1 3 . . 1 1 1 1 . 1 . 1 1 1 1 1 1 1 Garrison Access 8 | . . . . . . . . . 1 . . . . . 2 . 1 . . . 1 . . . . . . . . . 3 Garrison Relay 16 | . . . . . . 2 . 1 . . . 2 . 3 . . . . . . . . 3 . 3 . . 1 . 1 . Network Hub 2 | . . . . . . . . . . . . . . . . . . . . . 2 . . . . . . . . . . Energy Cycler 2 | . . . . . . . . . . . . . . . . . . . . . . . . . . . . . . . 2 Machines Repaired . | . . . . . . . . . . . . . . . . . . . . . . . . . . . . . . . . Machines Dismantled 7 | . . . . . . . . . . . . . . . . . . 4 1 . 2 . . . . . . . . . . Machines Sabotaged . | . . . . . . . . . . . . . . . . . . . . . . . . . . . . . . . . Overloaded Fab Kills . | . . . . . . . . . . . . . . . . . . . . . . . . . . . . . . . . Hacking | -11 -10 -10 -10 -9 -8 -8 -8 -8 -7 -7 -7 -7 -7 -7 -6 -6 -6 -6 -6 -6 -6 -5 -5 -4 -4 -3 -3 -3 -2 -2 -1 --------- Run | Yrd Mat Min Exi Min Mat Gar Mat Gar Fac Was Fac Gar Fac Gar Fac Was Fac Ext Cet Arc Hub Fac Gar Fac Gar Res Tes Gar Res Gar Acc Machines Accessed 149 | . 11 1 2 1 12 4 12 2 3 . 8 3 3 1 7 . 12 12 1 1 6 6 4 3 2 3 7 3 3 4 12 Terminals 89 | . 8 1 . . 6 4 7 2 1 . 3 3 2 1 2 . 4 11 1 . 5 4 4 1 2 2 3 3 . 4 5 Fabricators 11 | . . . . . . . . . 1 . 1 . . . 3 . 3 . . . . 1 . . . . 1 . . . 1 Repair Stations 13 | . 1 . . . 1 . 2 . . . 1 . . . . . 2 1 . . . . . 1 . 1 1 . 2 . . Recycling Units 6 | . 2 . . . 2 . . . . . . . . . . . 1 . . . . . . . . . . . . . 1 Scanalyzers 10 | . . . . . 2 . 2 . . . 2 . . . . . 1 . . . . . . . . . 1 . . . 2 Garrison Access 16 | . . . . . 1 . 1 . 1 . 1 . 1 . 2 . 1 . . . 1 1 . 1 . . 1 . 1 . 3 Total Hacks 527 | . 34 5 2 1 27 7 43 3 7 . 17 6 7 2 12 . 33 22 1 25 8 52 31 40 9 10 36 22 17 20 28 Successful 238 | . 18 3 2 1 19 1 21 2 5 . 7 1 3 . 4 . 18 7 . 25 1 28 5 18 4 5 16 3 8 6 7 Failed 285 | . 15 1 . . 8 6 22 1 2 . 10 5 4 2 8 . 14 15 1 . 7 23 26 22 5 5 20 19 9 14 21 Catastrophic 69 | . 1 . . . 2 3 2 1 . . 2 2 1 . 4 . 3 3 1 . 1 3 10 3 3 2 5 6 1 4 6 Database Lockouts 4 | . 1 1 . . . . . . . . . . . . . . 1 . . . . 1 . . . . . . . . . Manual 241 | . 25 5 1 . 15 1 23 2 1 . 7 1 4 . 6 . 14 4 1 . 6 32 26 1 7 . 15 20 2 13 9 Terminals 324 | . 30 5 . . 16 7 27 3 2 . 6 6 6 2 4 . 8 20 1 . 7 39 31 12 9 8 20 22 . 20 13 Fabricators 38 | . . . . . . . . . 4 . 4 . . . 6 . 7 . . . . 7 . . . . 6 . . . 4 Repair Stations 62 | . 2 . . . 2 . 4 . . . 1 . . . . . 7 2 . . . . . 27 . 2 1 . 14 . . Recycling Units 13 | . 2 . . . 2 . . . . . . . . . . . 4 . . . . . . . . . . . . . 5 Scanalyzers 30 | . . . . . 4 . 8 . . . 4 . . . . . 6 . . . . . . . . . 5 . . . 3 Garrison Access 32 | . . . . . 3 . 4 . 1 . 2 . 1 . 2 . 1 . . . 1 6 . 1 . . 4 . 3 . 3 Terminal Hacks 105 | . 5 3 2 1 5 1 4 1 1 . 2 1 2 . . . 1 6 . 25 . 16 4 5 3 3 6 3 . 4 1 Record 28 | . . . 1 . . . . . . . . . . . . . . . . 25 . . . 1 . . 1 . . . . Part Schematic 2 | . . . . . 1 . . . . . . . 1 . . . . . . . . . . . . . . . . . . Robot Schematic 1 | . 1 . . . . . . . . . . . . . . . . . . . . . . . . . . . . . . Robot Analysis 6 | . . 3 . . . . . . . . . . . . . . . . . . . 1 . . . . 2 . . . . Prototype ID Bank 4 | . 2 . . . . . . . . . . . . . . . . . . . . 1 1 . . . . . . . . Open Door 10 | . . . . 1 . . . . . . . . . . . . . 5 . . . . 1 . 1 . . . . 1 1 Level Access Points 1 | . . . . . . . . . . . . . . . . . . . . . . . . . . 1 . . . . . Branch Access Points 3 | . . . . . . . . . . . . . . . . . 1 . . . . 1 . . . 1 . . . . . Emergency Access Points 2 | . . . . . . . . . . . . . . . . . . . . . . . . . 1 . . . . 1 . Machine Index 1 | . . . . . . . . . . . . . . . . . . . . . . 1 . . . . . . . . . Terminal Index 3 | . 1 . . . . . . . . . 1 . . . . . . . . . . 1 . . . . . . . . . Garrison Index 1 | . . . . . . . . . . . . . . . . . . . . . . . . 1 . . . . . . . Alert Level 1 | . . . . . 1 . . . . . . . . . . . . . . . . . . . . . . . . . . Unreport Threat 10 | . . . . . 3 . 2 . . . . . 1 . . . . . . . . 3 . . . . 1 . . . . Locate Traps 5 | . 1 . . . . . 1 . 1 . . . . . . . . . . . . 1 . . . . 1 . . . . Maintenance Status 2 | . . . . . . . . . . . . . . . . . . . . . . 1 . 1 . . . . . . . Surveillance Status 1 | . . . . . . . . . . . . . . . . . . . . . . 1 . . . . . . . . . Transport Status 1 | . . . . . . . . . . . . . . . . . . 1 . . . . . . . . . . . . . Recall Reinforcements 1 | . . . . . . . . . . . . . . . . . . . . . . . . . . 1 . . . . . Hauler Manifests 2 | . . . . . . . . . . . . . . . . . . . . . . 1 . 1 . . . . . . . Registered Components 2 | . . . . . . . . . . . . . . . . . . . . . . 1 . 1 . . . . . . . Registered Prototypes 1 | . . . . . . . . . . . . . . . . . . . . . . 1 . . . . . . . . . Zone Layout 5 | . . . . . . . 1 . . . 1 . . . . . . . . . . 2 . . . . 1 . . . . Garrison Registry 7 | . . . . . . 1 . 1 . . . 1 . . . . . . . . . . 1 . 1 . . 1 . 1 . Patrol Navigation 2 | . . . . . . . . . . . . . . . . . . . . . . . 1 . . . . 1 . . . Security Stations 2 | . . . . . . . . . . . . . . . . . . . . . . . . . . . . 1 . 1 . Proto ID Catalog 1 | . . . 1 . . . . . . . . . . . . . . . . . . . . . . . . . . . . Fabricator Hacks 9 | . . . . . . . . . 2 . 1 . . . 1 . 1 . . . . 1 . . . . 2 . . . 1 Network Status 6 | . . . . . . . . . 1 . . . . . 1 . 1 . . . . 1 . . . . 1 . . . 1 Load Schematic 1 | . . . . . . . . . 1 . . . . . . . . . . . . . . . . . . . . . . Build 2 | . . . . . . . . . . . 1 . . . . . . . . . . . . . . . 1 . . . . Repair Station Hacks 33 | . 2 . . . 2 . 4 . . . . . . . . . 5 . . . . . . 11 . 2 . . 7 . . Scan Component 19 | . 1 . . . 1 . 2 . . . . . . . . . 3 . . . . . . 7 . 1 . . 4 . . Repair 14 | . 1 . . . 1 . 2 . . . . . . . . . 2 . . . . . . 4 . 1 . . 3 . . Recycling Unit Hacks . | . . . . . . . . . . . . . . . . . . . . . . . . . . . . . . . . Scanalyzer 14 | . . . . . 2 . 3 . . . 2 . . . . . 4 . . . . . . . . . 2 . . . 1 Insert Component 3 | . . . . . . . 1 . . . 1 . . . . . 1 . . . . . . . . . . . . . . Analyze 1 | . . . . . . . . . . . . . . . . . 1 . . . . . . . . . . . . . . Retrieve Study 10 | . . . . . 2 . 2 . . . 1 . . . . . 2 . . . . . . . . . 2 . . . 1 Garrison Access Hacks 16 | . . . . . 1 . 1 . 1 . 1 . 1 . 2 . 1 . . . 1 1 . 1 . . 1 . 1 . 3 Unlock Access 8 | . . . . . 1 . 1 . . . 1 . 1 . . . . . . . . 1 . 1 . . 1 . 1 . . Seal Access 8 | . . . . . . . . . 1 . . . . . 2 . 1 . . . 1 . . . . . . . . . 3 Unauthorized Hacks 61 | . 11 . . . 9 . 9 1 1 . 1 . . . 1 . 6 1 . . . 10 1 1 1 . 5 . . 2 1 Terminals 36 | . 9 . . . 6 . 9 1 . . . . . . . . 1 . . . . 3 1 1 1 . 2 . . 2 . Assimilate 7 | . 1 . . . . . 3 . . . . . . . . . 1 . . . . 1 . . . . 1 . . . . Botnet 11 | . 2 . . . 2 . . 1 . . . . . . . . . . . . . 1 1 1 1 . . . . 2 . Disrupt 1 | . . . . . . . . . . . . . . . . . . . . . . . . . . . 1 . . . . Operators 5 | . 1 . . . 2 . 1 . . . . . . . . . . . . . . 1 . . . . . . . . . Skim 12 | . 5 . . . 2 . 5 . . . . . . . . . . . . . . . . . . . . . . . . Fabricators 10 | . . . . . . . . . 1 . . . . . 1 . 4 . . . . 3 . . . . 1 . . . . Report 2 | . . . . . . . . . . . . . . . . . 1 . . . . 1 . . . . . . . . . Liberate 3 | . . . . . . . . . . . . . . . . . 2 . . . . 1 . . . . . . . . . Haulers 5 | . . . . . . . . . 1 . . . . . 1 . 1 . . . . 1 . . . . 1 . . . . Repair Stations 2 | . . . . . . . . . . . . . . . . . . 1 . . . . . . . . 1 . . . . Mechanics 1 | . . . . . . . . . . . . . . . . . . . . . . . . . . . 1 . . . . Patch 1 | . . . . . . . . . . . . . . . . . . 1 . . . . . . . . . . . . . Recycling Units 6 | . 2 . . . 2 . . . . . . . . . . . 1 . . . . . . . . . . . . . 1 Recyclers 2 | . . . . . . . . . . . . . . . . . 1 . . . . . . . . . . . . . 1 Tunnel 4 | . 2 . . . 2 . . . . . . . . . . . . . . . . . . . . . . . . . . Scanalyzers 1 | . . . . . . . . . . . . . . . . . . . . . . . . . . . 1 . . . . Researchers 1 | . . . . . . . . . . . . . . . . . . . . . . . . . . . 1 . . . . Garrison Access 6 | . . . . . 1 . . . . . 1 . . . . . . . . . . 4 . . . . . . . . . Broadcast 1 | . . . . . . . . . . . . . . . . . . . . . . 1 . . . . . . . . . Reprogram 2 | . . . . . 1 . . . . . . . . . . . . . . . . 1 . . . . . . . . . Intercept 1 | . . . . . . . . . . . . . . . . . . . . . . 1 . . . . . . . . . Watchers 2 | . . . . . . . . . . . 1 . . . . . . . . . . 1 . . . . . . . . . Data Cores Recovered 4 | . . . . . . . . . . . . . . . 2 . . . . . 2 . . . . . . . . . . Used . | . . . . . . . . . . . . . . . . . . . . . . . . . . . . . . . . Hacking Detections 122 | . 9 1 . . 9 4 11 2 2 . 8 3 2 1 4 . 10 10 2 . 5 5 3 2 2 3 6 3 3 4 8 Full Trace Events 10 | . . . . . . 1 1 . 1 . . 1 . . 1 . 2 . . . . . . . . 2 . . . . 1 Feedback Events 1 | . . . . . . . . . . . . . . . . . . . . . . . . . . 1 . . . . . Corruption 1 | . . . . . . . . . . . . . . . . . . . . . . . . . . 1 . . . . . Feedback Blocked . | . . . . . . . . . . . . . . . . . . . . . . . . . . . . . . . . Robot Schematics Acquired 7 | . 1 . . . . . . . . . . . . . . . . . . . . . . . . . 6 . . . . Robots Built . | . . . . . . . . . . . . . . . . . . . . . . . . . . . . . . . . Authchips . | . . . . . . . . . . . . . . . . . . . . . . . . . . . . . . . . Time . | . . . . . . . . . . . . . . . . . . . . . . . . . . . . . . . . Total Robot Build Rating . | . . . . . . . . . . . . . . . . . . . . . . . . . . . . . . . . Part Schematics Acquired 19 | . . . . . 1 . . . . . . . 1 . . . 1 . . . . . . . . . 16 . . . . Parts Built 3 | . . . . . . . . . . . 2 . . . . . . . . . . . . . . . 1 . . . . Authchips . | . . . . . . . . . . . . . . . . . . . . . . . . . . . . . . . . Time 169 | . . . . . . . . . . . 95 . . . . . . . . . . . . . . . 74 . . . . Total Part Build Rating 19 | . . . . . . . . . . . 10 . . . . . . . . . . . . . . . 9 . . . . Part Studies Acquired 9 | . . . . . 2 . 1 . . . 1 . . . . . 2 . . . . . . . . . 2 . . . 1 Parts Repaired 14 | . 1 . . . 1 . 2 . . . . . . . . . 2 . . . . . . 4 . 1 . . 3 . . Time 673 | . 26 . . . 26 . 86 . . . . . . . . . 82 . . . . . . 227 . 36 . . 190 . . Parts Recycled . | . . . . . . . . . . . . . . . . . . . . . . . . . . . . . . . . Recycled Matter . | . . . . . . . . . . . . . . . . . . . . . . . . . . . . . . . . Retrieved Matter . | . . . . . . . . . . . . . . . . . . . . . . . . . . . . . . . . Retrieved Components . | . . . . . . . . . . . . . . . . . . . . . . . . . . . . . . . . Parts Scanalyzed 1 | . . . . . . . 1 . . . . . . . . . . . . . . . . . . . . . . . . Part Schematics Acquired 1 | . . . . . . . . . . . . . . . . . 1 . . . . . . . . . . . . . . Parts Damaged . | . . . . . . . . . . . . . . . . . . . . . . . . . . . . . . . . Bothacking | -11 -10 -10 -10 -9 -8 -8 -8 -8 -7 -7 -7 -7 -7 -7 -6 -6 -6 -6 -6 -6 -6 -5 -5 -4 -4 -3 -3 -3 -2 -2 -1 ------------ Run | Yrd Mat Min Exi Min Mat Gar Mat Gar Fac Was Fac Gar Fac Gar Fac Was Fac Ext Cet Arc Hub Fac Gar Fac Gar Res Tes Gar Res Gar Acc Used RIF Installer 10 | . . . . . . 1 . 1 . . . 1 . 1 . . . . . . . . 2 . 2 . . 1 . 1 . Command Fork 3 | . . . . . . . . 1 . . . 1 . . . . . . . . . . . . . . . 1 . . . Threat Obfuscator 1 | . . . . . . . . . . . . . . . . . . . . . . . 1 . . . . . . . . Signal Jammer 1 | . . . . . . . . . . . . . . . . . . . . . . . . . 1 . . . . . . Zone Cloak 1 | . . . . . . . . . . . . . . . . . . . . . . . . . . . . . . 1 . Watcher Feeds 1 | . . . . . . . . . . . . . . 1 . . . . . . . . . . . . . . . . . Alert ID Control 1 | . . . . . . . . . . . . . . . . . . . . . . . . . 1 . . . . . . Program Shield 1 | . . . . . . . . . . . . . . . . . . . . . . . 1 . . . . . . . . Robots Hacked 55 | . . . 4 . . . . . 5 . . . 1 2 5 5 4 4 1 1 1 . . 1 2 2 5 4 2 . 6 Non-combat 26 | . . . 3 . . . . . 5 . . . 1 2 2 . 2 . . . . . . 1 . . 1 1 2 . 6 Combat 29 | . . . 1 . . . . . . . . . . . 3 5 2 4 1 1 1 . . . 2 2 4 3 . . . Robot Hacks Applied 61 | . . . 4 . . . . . 5 . . . 1 2 5 5 4 4 1 1 1 . . 1 4 2 6 7 2 . 6 parse_system 20 | . . . 4 . . . . . . . . . . . . 1 . 4 1 1 1 . . . 3 2 1 2 . . . find_chute 2 | . . . . . . . . . 1 . . . . . 1 . . . . . . . . . . . . . . . . map_walls 3 | . . . . . . . . . 1 . . . . . . . . . . . . . . . . . . . . . 2 drop_inventory 5 | . . . . . . . . . 2 . . . . . 1 . . . . . . . . . . . . . . . 2 purge_threat 2 | . . . . . . . . . . . . . . . . . . . . . . . . . . . . 2 . . . block_reporting 1 | . . . . . . . . . 1 . . . . . . . . . . . . . . . . . . . . . . find_scanalyzer 1 | . . . . . . . . . . . . . . . . . . . . . . . . . . . 1 . . . . disable_scanner 3 | . . . . . . . . . . . . . . . . . . . . . . . . . . . 3 . . . . ignore_targets 4 | . . . . . . . . . . . . . . . . 4 . . . . . . . . . . . . . . . amplify_resonance 2 | . . . . . . . . . . . . . . . 1 . 1 . . . . . . . . . . . . . . disable_weapons 2 | . . . . . . . . . . . . . . . 1 . 1 . . . . . . . . . . . . . . overwrite_iff 2 | . . . . . . . . . . . . . . . 1 . . . . . . . . . 1 . . . . . . formatsys_low 12 | . . . . . . . . . . . . . 1 2 . . 2 . . . . . . 1 . . 1 1 2 . 2 formatsys_high 2 | . . . . . . . . . . . . . . . . . . . . . . . . . . . . 2 . . . Relay Couplers Released 66 | . . . . . . 8 . 5 . . . 6 . 12 . . . . . . 2 . 11 . 13 . . 5 . 4 . Machine Destruction 64 | . . . . . . 8 . 5 . . . 6 . 12 . . . . . . . . 11 . 13 . . 5 . 4 . Programmers 2 | . . . . . . . . . . . . . . . . . . . . . 2 . . . . . . . . . . Attached 14 | . . . . . . . . . 1 . . . . 1 2 . . . . . . . . 1 2 . 1 4 1 1 . Fabnet Peak Effective % . | . . . . . . . . . . . . . . . . . . . . . . . . . . . . . . . . Robots Rewired 53 | . . . . . . . . 7 . . . . . 2 . . . 20 . . . . 8 . 11 . 2 1 . 2 . Allies Hacked 5 | . . . . . . . . . . . . . . 1 . . . . . . . . . . 1 1 2 . . . . Hacks Repelled . | . . . . . . . . . . . . . . . . . . . . . . . . . . . . . . . . Allies | -11 -10 -10 -10 -9 -8 -8 -8 -8 -7 -7 -7 -7 -7 -7 -6 -6 -6 -6 -6 -6 -6 -5 -5 -4 -4 -3 -3 -3 -2 -2 -1 -------- Run | Yrd Mat Min Exi Min Mat Gar Mat Gar Fac Was Fac Gar Fac Gar Fac Was Fac Ext Cet Arc Hub Fac Gar Fac Gar Res Tes Gar Res Gar Acc Total Allies 129 | . 1 . . 2 . . 2 7 . 20 . . 1 4 2 . 7 34 5 . . 1 8 1 16 . 4 3 3 4 4 Largest Group 23 | . 1 . . 2 2 . 1 6 2 20 18 12 7 4 5 . 3 23 17 10 8 1 7 7 12 12 9 4 5 4 4 Highest-Rated Group 812 | . 10 . . 47 47 . 10 96 52 545 475 357 213 112 136 . 87 812 798 624 494 10 318 318 771 771 630 288 202 272 272 Highest-Rated Ally 159 | . 10 . . 31 31 . 10 34 34 35 31 31 31 34 32 . 29 159 159 96 96 10 49 50 119 110 110 99 90 90 85 Total Orders 276 | . . . . . . . . . 8 . 16 . 16 6 23 1 27 18 2 . 5 7 7 4 4 18 8 15 11 2 78 STAY 26 | . . . . . . . . . 1 . . . . 2 . . . 4 1 . . . 4 . 2 . . 10 . 1 1 FOLLOW 18 | . . . . . . . . . . . 1 . 1 . 1 . 1 . 1 . . . 3 . 2 1 . 4 . 1 2 GUARD 2 | . . . . . . . . . . . . . . 1 . . . . . . . . . . . . . 1 . . . AID 12 | . . . . . . . . . . . . . . 3 1 . 2 . . . . . . 1 . . 1 . 2 . 2 EXPLORE 66 | . . . . . . . . . . . 5 . 6 . 8 . 5 3 . . . 3 . 2 . 8 2 . 2 . 22 RETURN 152 | . . . . . . . . . 7 . 10 . 9 . 13 1 19 11 . . 5 4 . 1 . 9 5 . 7 . 51 Ally Attacks 1183 | . . . . . 9 . . 12 6 . 135 81 78 19 11 . 8 122 60 1 137 . 20 26 63 74 83 127 24 47 40 Total Damage 32342 | . . . . . 195 . . 217 202 . 1527 1344 1038 416 454 . 101 2644 1499 . 4298 . 657 704 2279 2970 3243 4701 504 1839 1510 Kills 198 | . . . . . 1 . . 4 1 . 16 15 4 3 5 . 1 18 5 . 24 . 4 6 19 16 16 24 1 6 9 Allies Corrupted 5 | . . . . . . . . 1 . . . . . . . . . . . . 1 . . . . . 1 . . . 2 Allies Melted . | . . . . . . . . . . . . . . . . . . . . . . . . . . . . . . . . Turrets Deployed 2 | . . . . . . . . . . . . . . . . . . . . . . . . . . . . . . . 2 Intel | -11 -10 -10 -10 -9 -8 -8 -8 -8 -7 -7 -7 -7 -7 -7 -6 -6 -6 -6 -6 -6 -6 -5 -5 -4 -4 -3 -3 -3 -2 -2 -1 ------- Run | Yrd Mat Min Exi Min Mat Gar Mat Gar Fac Was Fac Gar Fac Gar Fac Was Fac Ext Cet Arc Hub Fac Gar Fac Gar Res Tes Gar Res Gar Acc Active Infowar (turns) 11668 | 54 2325 2365 1428 2315 259 . . . 533 . 31 . . . 15 . 47 98 . . . . . . . . 131 260 204 406 1197 Sensors 101 | . . 5 . . 1 . . . . . 31 . . . 15 . 47 2 . . . . . . . . . . . . . IFF 96 | . . . . . . . . . . . . . . . . . . 96 . . . . . . . . . . . . . Seismic 9274 | 54 2325 2360 1428 2315 259 . . . 533 . . . . . . . . . . . . . . . . . . . . . . Spoofing 2 | . . . . . . . . . . . . . . . . . . . . . . . . . . . 2 . . . . Jamming 2196 | . . . . . . . . . . . . . . . . . . . . . . . . . . . 129 260 204 406 1197 Robot Analysis Total 6 | . . 3 . . . . . . . . . . . . . . . . . . . 1 . . . . 2 . . . . Derelict Logs Recovered 3 | . . 2 . 1 . . . . . . . . . . . . . . . . . . . . . . . . . . . Drone Launches 168 | . . . . . . . . . 7 . 9 . 10 . 14 1 17 12 . . 5 5 . 4 . 10 6 . 8 . 60 Drone Recoveries 158 | . . . . . . . . . 7 . 9 . 10 . 14 1 17 12 . . 5 5 . 3 . 9 5 . 8 . 53 Exploration | -11 -10 -10 -10 -9 -8 -8 -8 -8 -7 -7 -7 -7 -7 -7 -6 -6 -6 -6 -6 -6 -6 -5 -5 -4 -4 -3 -3 -3 -2 -2 -1 ------------- Run | Yrd Mat Min Exi Min Mat Gar Mat Gar Fac Was Fac Gar Fac Gar Fac Was Fac Ext Cet Arc Hub Fac Gar Fac Gar Res Tes Gar Res Gar Acc Turns Passed 41411 | 109 2385 2365 1430 2322 2809 1329 2073 1268 1084 1138 1018 959 573 1497 1186 209 2054 1975 711 117 1081 410 1624 420 2213 553 694 1637 465 1425 2278 Spaces Moved 17611 | 43 949 722 442 702 939 531 792 502 462 569 552 488 290 704 654 108 933 881 315 49 426 235 751 204 1018 296 292 799 193 677 1093 Core 148 | 6 . . . . . . . . . . . . . . . . . . . . . . . . . . . . . . 142 Treads 17463 | 37 949 722 442 702 939 531 792 502 462 569 552 488 290 704 654 108 933 881 315 49 426 235 751 204 1018 296 292 799 193 677 951 Legs . | . . . . . . . . . . . . . . . . . . . . . . . . . . . . . . . . Wheels . | . . . . . . . . . . . . . . . . . . . . . . . . . . . . . . . . Hover . | . . . . . . . . . . . . . . . . . . . . . . . . . . . . . . . . Flight . | . . . . . . . . . . . . . . . . . . . . . . . . . . . . . . . . Fastest Speed 50 | 50 160 320 320 320 163 200 200 200 200 160 160 160 160 160 160 160 160 160 160 160 160 160 160 160 152 150 150 150 150 150 50 Average Speed 185 | 144 197 320 320 320 210 200 200 200 200 180 160 160 160 160 160 160 162 166 161 160 169 160 160 160 161 150 150 150 156 150 138 Slowest Speed 320 | 160 320 320 320 320 240 203 200 200 200 200 160 240 160 160 160 160 240 240 240 160 240 160 160 160 250 150 150 150 225 232 240 Overloaded Moves . | . . . . . . . . . . . . . . . . . . . . . . . . . . . . . . . . Propulsion Burnouts . | . . . . . . . . . . . . . . . . . . . . . . . . . . . . . . . . Robots Hopped . | . . . . . . . . . . . . . . . . . . . . . . . . . . . . . . . . Potential Cave-ins . | . . . . . . . . . . . . . . . . . . . . . . . . . . . . . . . . Cave-ins Triggered . | . . . . . . . . . . . . . . . . . . . . . . . . . . . . . . . . Exploration Rate (%) 57 | 4 100 100 89 83 54 57 67 64 14 96 20 62 14 88 31 87 34 95 66 67 77 13 82 5 88 11 53 70 7 92 48 Regions Visited 31 Branch Regions 8 Pre-discovered Areas 9 | . 4 1 1 . 2 . 1 . . . . . . . . . . . . . . . . . . . . . . . . Known Exits Taken 13 | . . 1 . 1 1 . 1 . . . 1 . 1 . . . 1 . . . 1 1 . 1 . 1 1 . 1 . . Unknown Exits Taken 6 | 1 1 . 1 . . . . . . . . . . . . . . 1 1 1 . . . . . . . . . . . Scrap Searched 3 | . . 1 . 2 . . . . . . . . . . . . . . . . . . . . . . . . . . . Spaces Dug 306 | . 10 . . . 9 13 6 16 . . 7 20 . 34 5 . 17 . . 2 3 . 29 2 42 6 12 25 6 15 27 Terrain Destroyed 1107 | . 11 14 . . 44 64 74 21 . . 8 49 23 92 36 . 23 . 28 2 39 . 48 5 91 9 16 32 17 56 305 Melee 194 | . . . . . . 13 6 14 . . 5 19 . 31 5 . 13 . . 2 1 . 24 2 24 . 2 18 . 11 4 Projectile 213 | . 11 . . . 9 . . . . . 3 . . . . . 4 . 27 . 37 . 8 3 23 8 12 14 17 13 24 AOE 685 | . . 14 . . 35 51 68 7 . . . 30 23 61 31 . 6 . . . . . 14 . 42 . . . . 32 271 Terrain Rammed . | . . . . . . . . . . . . . . . . . . . . . . . . . . . . . . . . Walls Destroyed . | . . . . . . . . . . . . . . . . . . . . . . . . . . . . . . . . Machines Disabled . | . . . . . . . . . . . . . . . . . . . . . . . . . . . . . . . . Actions | -11 -10 -10 -10 -9 -8 -8 -8 -8 -7 -7 -7 -7 -7 -7 -6 -6 -6 -6 -6 -6 -6 -5 -5 -4 -4 -3 -3 -3 -2 -2 -1 --------- Run | Yrd Mat Min Exi Min Mat Gar Mat Gar Fac Was Fac Gar Fac Gar Fac Was Fac Ext Cet Arc Hub Fac Gar Fac Gar Res Tes Gar Res Gar Acc Total 23547 | 71 1276 748 458 749 1528 711 1153 672 566 670 671 594 370 930 745 141 1330 1211 443 72 637 262 1002 289 1429 386 437 1116 335 959 1586 Wait 2373 | 8 194 . . 14 328 74 203 64 22 52 86 25 36 56 28 28 177 68 32 2 70 11 66 66 124 50 18 134 102 110 125 Move 17580 | 42 948 721 441 701 938 530 791 501 461 568 551 487 289 703 654 107 932 880 314 48 425 234 750 204 1017 295 291 798 192 675 1092 Hop . | . . . . . . . . . . . . . . . . . . . . . . . . . . . . . . . . Pick Up 264 | 4 23 1 5 4 44 7 4 4 7 4 3 2 2 3 3 . 17 8 15 1 9 1 19 4 20 2 5 13 4 7 19 Fast Attach 104 | 7 1 2 . 2 9 1 4 1 2 6 2 2 1 3 . . 10 6 4 . 1 . 4 2 5 5 5 . 1 12 6 Attach 79 | . 1 . . . 8 1 1 . 3 . . . . 3 2 . 10 5 1 . 2 5 6 2 2 1 1 6 3 2 14 Detach 33 | . . . . . 1 . 1 . . . 1 . . 2 . . 1 3 1 . 1 . 3 1 3 3 1 3 . 4 4 Swap 637 | . 15 5 3 4 32 20 21 18 22 8 11 14 14 27 11 1 45 47 6 4 15 3 27 5 52 9 34 36 16 30 82 Drop 305 | . 3 4 5 8 38 10 12 5 11 18 4 5 4 3 2 . 13 14 21 1 9 1 17 . 23 4 10 9 1 19 31 Fire 1623 | 7 78 9 . 13 127 39 70 39 38 . 8 26 24 69 40 5 97 136 41 4 74 . 83 3 137 17 66 67 16 84 206 Melee 392 | . . . 4 . . 22 6 35 . 13 5 33 . 60 5 . 21 6 . 12 20 6 27 2 43 . 3 49 . 16 4 Ram 1 | . . . . . . . . . . . . . . . . . . . . . . . . . . . . . . . 1 Kick . | . . . . . . . . . . . . . . . . . . . . . . . . . . . . . . . . Crush 56 | 3 13 6 . 3 3 1 1 . . . . . . 1 . . 7 6 . . 5 1 . . 2 . 1 1 . . 2 Escape Stasis 9 | . . . . . . 6 . 2 . . . . . . . . . . . . . . . . 1 . . . . . . Rewire 6 | . . . . . . . . 3 . 1 . . . . . . . . . . . . . . . . 2 . . . . Trap 39 | . . . . . . . 39 . . . . . . . . . . . . . . . . . . . . . . . . Miscellaneous 46 | . . . . . . . . . . . . . . . . . . 32 8 . 6 . . . . . . . . . . Route ------- -11/Scrapyard -10/Materials (discovered 4 exits: *Mat x3 / *Min) -10/Mines (discovered 4 exits: *Mat x2 / *Exi / *Sub) -10/Exiles -9/Mines (discovered 2 exits: *Mat x2) -8/Materials (discovered 3 exits: *Fac x2 / Gar) -8/Garrison (discovered 3 exits: *Mat x3) -8/Materials (discovered 2 exits: *Fac / Gar) -8/Garrison (discovered 3 exits: *Fac x3) -7/Factory (discovered 2 exits: *Fac / *Low) -7/Waste -7/Factory -7/Garrison (discovered 3 exits: *Fac x3) -7/Factory (discovered 2 exits: *Fac / Gar) -7/Garrison (discovered 3 exits: *Fac x3) -6/Factory -6/Waste -6/Factory (discovered 4 exits: *Low x2 / *Ext x2) -6/Extension (discovered 2 exits: *Fac / *Cet) -6/Cetus (discovered 2 exits: *Fac / *Arc) -6/Archives -6/Hub_04(d) (discovered 4 exits: *Fac x4) -5/Factory (discovered 4 exits: *Fac / Upp x2 / Gar) -5/Garrison (discovered 3 exits: *Fac x3) -4/Factory -4/Garrison (discovered 3 exits: *Res x3) -3/Research (discovered 5 exits: Res x3 / *Tes x2) -3/Testing -3/Garrison (discovered 3 exits: *Res x3) -2/Research -2/Garrison (discovered 3 exits: *Acc x3) -1/Access To Epsilon Eridani History --------- Turn | Location | Event 7 | -11/Scrapyard | Discovered new exit (range 15) 110 | -11/Scrapyard | Entered Materials 254 | -10/Materials | Discovered new exit (range 8) 302 | -10/Materials | Build established: Mutant 739 | -10/Materials | Discovered new exit (range 9) 1086 | -10/Materials | Discovered new exit (range 3) 1138 | -10/Materials | Central database locked down 1254 | -10/Materials | Repaired Lgt. Treads 1274 | -10/Materials | Learned location of Mines (-10) 1335 | -10/Materials | Loaded intel: 24 trap records 1386 | -10/Materials | Learned Storage terminal intel 1398 | -10/Materials | Discovered new exit (range 3) 1429 | -10/Materials | Loaded intel: 31 machine locations 1462 | -10/Materials | Learned location of 2 exits from Mines 1521 | -10/Materials | Learned Storage emergency access door positions 2495 | -10/Materials | Entered Mines 2496 | -10/Mines | Identified exit to Materials 2497 | -10/Mines | Identified exit to Exiles 2497 | -10/Mines | Identified exit to Subcaves 2508 | -10/Mines | Central database locked down 2759 | -10/Mines | Core integrity fell below 50% 2841 | -10/Mines | Found a hidden stash of uninstalled traps 2981 | -10/Mines | Deemed a non-threat by the Exiles lab entrance 3306 | -10/Mines | Found a damaged Exp. Sensor Array with a note attached 3313 | -10/Mines | Found Prototype Device 3313 | -10/Mines | Identified Exp. Sensor Array 3681 | -10/Mines | Learned location of Mines (-9) 4293 | -10/Mines | Learned Materials security intel 4860 | -10/Mines | Entered Exiles 4937 | -10/Exiles | Met 8R-AWN 4991 | -10/Exiles | Met EX-HEX 5196 | -10/Exiles | Met EX-DEC 5248 | -10/Exiles | Visited The Gauntlet 5588 | -10/Exiles | Learned location of Zion (-6) 5812 | -10/Exiles | Met EX-BIN 5858 | -10/Exiles | Aligned with FarCom system 5861 | -10/Exiles | Given EX-Vault access code 5948 | -10/Exiles | Opened EX-Vault 5972 | -10/Exiles | Found Longsword +1 5980 | -10/Exiles | Found Deploy-a-Sentry 5984 | -10/Exiles | Found Deploy-a-Sentry 5988 | -10/Exiles | Found Deploy-a-Sentry 6050 | -10/Exiles | Warned to stay clear of 0b10 Research branches 6258 | -10/Exiles | Discovered new exit (range 10) 6290 | -10/Exiles | Stole two prototypes: Longsword +1, Deploy-a-Sentry 6290 | -10/Exiles | Entered Mines 6291 | -9/Mines | Identified exit to Materials 6335 | -9/Mines | Met a Derelict bent on vengeance 6957 | -9/Mines | Found the Drone Emporium 6972 | -9/Mines | Found Prototype Device 6972 | -9/Mines | Identified Sensor Drone Bay 7148 | -9/Mines | Found a Scrap Suit stashed away for nefarious purposes 8612 | -9/Mines | Entered Materials 8612 | -8/Materials | Accompanied by 2 allies 8612 | -8/Materials | Evolved 4 slots: Propulsion x1, Utility x2, Weapon x1 8617 | -8/Materials | Led the pair of lost Derelicts to an unsafe place 9179 | -8/Materials | Build established: Tank 9695 | -8/Materials | Build established: Scavenger-Skirmisher 9976 | -8/Materials | Discovered new exit (range 8) 10322 | -8/Materials | Core integrity fell below 50% 10434 | -8/Materials | Repaired Huge Storage Unit 10971 | -8/Materials | Discovered new exit (range 15) 11011 | -8/Materials | Identified exit to Garrison 11421 | -8/Materials | Entered Garrison 11422 | -8/Garrison | Identified exit to Materials 11502 | -8/Garrison | Triggered checkpoint 11618 | -8/Garrison | Discovered exit to Materials (range 51) 11618 | -8/Garrison | Discovered exit to Materials (range 83) 11618 | -8/Garrison | Discovered exit to Materials (range 96) 11767 | -8/Garrison | Triggered checkpoint 11785 | -8/Garrison | Triggered checkpoint 12052 | -8/Garrison | Installed Relay Interface Framework 12196 | -8/Garrison | Garrison Relay disabled 12533 | -8/Garrison | Garrison Relay disabled 12750 | -8/Garrison | Entered Materials 13081 | -8/Materials | Repaired Lgt. Treads+ 13791 | -8/Materials | Discovered new exit (range 16) 14310 | -8/Materials | Repaired Prc. Beam Rifle 14646 | -8/Materials | Garrison activated, responded to threat 14676 | -8/Materials | Learned Factory stockpile data 14715 | -8/Materials | Learned Factory recycling unit intel 14741 | -8/Materials | Identified exit to Garrison 14761 | -8/Materials | Learned location of 2 exits from Lower Caves 14767 | -8/Materials | Learned Storage emergency access door positions 14768 | -8/Materials | Learned 4 Recycling zone layouts 14775 | -8/Materials | Learned location of 1 exit from Recycling 14792 | -8/Materials | Learned 4 Recycling zone layouts 14823 | -8/Materials | Entered Garrison 15055 | -8/Garrison | Triggered checkpoint 15061 | -8/Garrison | Core integrity fell below 20% 15159 | -8/Garrison | Discovered new exit (range 54) 15159 | -8/Garrison | Discovered new exit (range 82) 15159 | -8/Garrison | Discovered new exit (range 41) 15169 | -8/Garrison | Garrison Relay disabled 15288 | -8/Garrison | Triggered checkpoint 15291 | -8/Garrison | Triggered checkpoint 15501 | -8/Garrison | Triggered checkpoint 15693 | -8/Garrison | Triggered checkpoint 15729 | -8/Garrison | Lost 3 allies 15801 | -8/Garrison | Expanded RIF knowledge: Command Fork 15989 | -8/Garrison | Triggered checkpoint 16091 | -8/Garrison | Entered Factory 16091 | -7/Factory | Accompanied by 2 allies 16091 | -7/Factory | Evolved 2 slots: Propulsion x1, Utility x1 16093 | -7/Factory | Loaded intel: 6 recycling unit locations 16093 | -7/Factory | FarCom data flow suspended 16378 | -7/Factory | Build established: Scavenger-Gunner 16588 | -7/Factory | Discovered new exit (range 15) 16621 | -7/Factory | Identified exit to Lower Caves 16982 | -7/Factory | Discovered new exit (range 6) 17051 | -7/Factory | Identified exit to Factory 17175 | -7/Factory | Sucked down chute 17175 | -7/Factory | Entered Waste 17176 | -7/Waste | Joined by Warlord forces that had cleared the area 17671 | -7/Waste | Discovered new exit (range 11) 17825 | -7/Waste | Build established: Scavenger-Mutant 17916 | -7/Waste | Found Damper Plating 18313 | -7/Waste | Entered Factory 18313 | -7/Factory | Accompanied by 18 allies 18685 | -7/Factory | Build established: Scavenger-Tank 18837 | -7/Factory | Fabricated Hyp. Gauss Rifle (x2) 19285 | -7/Factory | Identified exit to Garrison 19331 | -7/Factory | Entered Garrison 19331 | -7/Garrison | Accompanied by 12 allies 19553 | -7/Garrison | Build established: Scavenger-Mutant 19566 | -7/Garrison | Triggered checkpoint 19602 | -7/Garrison | Garrison Relay disabled 19670 | -7/Garrison | Triggered checkpoint 19708 | -7/Garrison | Discovered new exit (range 28) 19708 | -7/Garrison | Discovered new exit (range 87) 19708 | -7/Garrison | Discovered new exit (range 87) 19836 | -7/Garrison | Triggered checkpoint 19845 | -7/Garrison | Triggered checkpoint 19881 | -7/Garrison | Triggered checkpoint 19882 | -7/Garrison | Destroyed 10 combat bots 19922 | -7/Garrison | Spotted B-75 Beast 19925 | -7/Garrison | Spotted B-75 Beast 19939 | -7/Garrison | Destroyed B-75 Beast 19954 | -7/Garrison | Destroyed B-75 Beast 20191 | -7/Garrison | Garrison Relay disabled 20200 | -7/Garrison | Triggered checkpoint 20234 | -7/Garrison | Expanded RIF knowledge: Command Fork 20290 | -7/Garrison | Entered Factory 20290 | -7/Factory | Accompanied by 7 allies 20486 | -7/Factory | Build established: Tank 20488 | -7/Factory | Discovered exit to Factory (range 17) 20690 | -7/Factory | First assault squad dispatched 20854 | -7/Factory | Identified exit to Garrison 20863 | -7/Factory | Entered Garrison 20863 | -7/Garrison | Accompanied by 4 allies 20917 | -7/Garrison | Triggered checkpoint 20970 | -7/Garrison | Garrison Relay disabled 21055 | -7/Garrison | Expanded RIF knowledge: Watcher Feeds 21107 | -7/Garrison | Lost 3 allies 21281 | -7/Garrison | Triggered checkpoint 21291 | -7/Garrison | Triggered checkpoint 21304 | -7/Garrison | Triggered checkpoint 21312 | -7/Garrison | Triggered checkpoint 21333 | -7/Garrison | Destroyed 9 combat bots 21375 | -7/Garrison | Triggered checkpoint 21466 | -7/Garrison | Garrison Relay disabled 21512 | -7/Garrison | Discovered exit to Factory (range 10) 21813 | -7/Garrison | Triggered checkpoint 21893 | -7/Garrison | Discovered exit to Factory (range 14) 22135 | -7/Garrison | Garrison Relay disabled 22238 | -7/Garrison | Discovered exit to Factory (range 10) 22258 | -7/Garrison | Triggered checkpoint 22360 | -7/Garrison | Entered Factory 22360 | -6/Factory | Accompanied by 3 allies 22360 | -6/Factory | Evolved 2 slots: Utility x2 22668 | -6/Factory | Build established: Scavenger-Tank 22845 | -6/Factory | P-60 Hacker assimilated allied Grenadier 4a 23023 | -6/Factory | Build established: Tank 23546 | -6/Factory | Sucked down chute 23546 | -6/Factory | Entered Waste 23561 | -6/Waste | EMP discharged 23588 | -6/Waste | Spotted C-40 Crusher 23593 | -6/Waste | Spotted C-40 Crusher 23619 | -6/Waste | Spotted C-40 Crusher 23635 | -6/Waste | Spotted C-40 Crusher 23648 | -6/Waste | Spotted C-40 Crusher 23652 | -6/Waste | Spotted C-40 Crusher 23661 | -6/Waste | EMP discharged 23661 | -6/Waste | System corruption reached 10% 23709 | -6/Waste | Discovered new exit (range 13) 23755 | -6/Waste | Entered Factory 23833 | -6/Factory | Build established: Scavenger-Tank 23889 | -6/Factory | Repaired Hrd. Medium Armor Plating 23938 | -6/Factory | Repaired Unknown Protection 24308 | -6/Factory | Identified exit to Lower Caves 24308 | -6/Factory | Identified exit to Extension 24939 | -6/Factory | Spotted B-75 Beast 24983 | -6/Factory | Lost 5 parts (2n2u1w) 25023 | -6/Factory | Destroyed B-75 Beast 25292 | -6/Factory | Garrison activated, responded to threat 25396 | -6/Factory | Lost 3 allies 25436 | -6/Factory | Central database locked down 25809 | -6/Factory | Entered Extension 26259 | -6/Extension | Disrupted transfer network 26411 | -6/Extension | Rescued a captive Derelict 26411 | -6/Extension | Rescued a captive Derelict 26638 | -6/Extension | Rescued a captive Derelict 26822 | -6/Extension | Destroyed B-75 Beast 26840 | -6/Extension | Spotted B-75 Beast 26849 | -6/Extension | Destroyed B-75 Beast 26869 | -6/Extension | Lost 4 allies 26920 | -6/Extension | Rescued a captive Derelict 26921 | -6/Extension | Rescued a captive Derelict 27110 | -6/Extension | Rescued a captive Derelict 27111 | -6/Extension | Rescued a captive Derelict 27140 | -6/Extension | Rescued A7 27154 | -6/Extension | Lost 3 allies 27322 | -6/Extension | Lost 3 allies 27353 | -6/Extension | Rescued a captive Derelict 27355 | -6/Extension | Rescued a captive Derelict 27476 | -6/Extension | Rescued a captive Derelict 27520 | -6/Extension | Rescued a captive Derelict 27542 | -6/Extension | Build established: Commander-Tank 27543 | -6/Extension | Rescued a captive Derelict 27544 | -6/Extension | Rescued a captive Derelict 27574 | -6/Extension | Discovered new exit (range 10) 27576 | -6/Extension | Discovered new exit (range 6) 27784 | -6/Extension | Entered Cetus 27784 | -6/Cetus | Accompanied by 17 allies (A7) 27789 | -6/Cetus | Acquired a Cetus Manufacturing Module code from A7 27813 | -6/Cetus | Spotted Cetus Guard 27813 | -6/Cetus | Spotted Cetus Guard 27813 | -6/Cetus | Spotted Cetus Guard 27813 | -6/Cetus | Spotted Cetus Guard 27822 | -6/Cetus | Destroyed Cetus Guard 27822 | -6/Cetus | Destroyed Cetus Guard 27829 | -6/Cetus | Allies destroyed Cetus Guard 27833 | -6/Cetus | Allies destroyed Cetus Guard 27864 | -6/Cetus | Lost 5 allies 27948 | -6/Cetus | Escorted A7 to Cetus Mainframe 27964 | -6/Cetus | Discovered new exit (range 16) 27984 | -6/Cetus | Discovered new exit (range 27) 27997 | -6/Cetus | Spotted Cetus Guard 28000 | -6/Cetus | Spotted Cetus Guard 28003 | -6/Cetus | Spotted Cetus Guard 28003 | -6/Cetus | Spotted Cetus Guard 28005 | -6/Cetus | Destroyed Cetus Guard 28009 | -6/Cetus | Allies destroyed Cetus Guard 28013 | -6/Cetus | Allies destroyed Cetus Guard 28021 | -6/Cetus | Allies destroyed Cetus Guard 28046 | -6/Cetus | Lost 5 allies 28048 | -6/Cetus | Met Revision 17 28143 | -6/Cetus | Started Cetus Manufacturing Module 28153 | -6/Cetus | Build established: Scavenger-Tank 28168 | -6/Cetus | Manufactured an Enhanced Grunt 28193 | -6/Cetus | Manufactured an Enhanced Grunt 28218 | -6/Cetus | Manufactured an Enhanced Grunt 28243 | -6/Cetus | Manufactured an Enhanced Grunt 28268 | -6/Cetus | Manufactured an Enhanced Grunt 28445 | -6/Cetus | Murdered A7 28450 | -6/Cetus | Extracted ID and sensor layout for unrecognized location from A7's data core 28455 | -6/Cetus | Found Med. Regenerative Plating 28495 | -6/Cetus | Entered Archives 28495 | -6/Archives | Accompanied by 10 allies 28564 | -6/Archives | Met Zhirov 28570 | -6/Archives | Reinforcements dispatched to Archives 28570 | -6/Archives | Discovered new exit (range 14) 28583 | -6/Archives | Read partially decrypted archive contents 28612 | -6/Archives | Entered Hub_04(d) 28612 | -6/Hub_04(d) | Accompanied by 8 allies 28777 | -6/Hub_04(d) | Discovered new exit (range 14) 28862 | -6/Hub_04(d) | Identified exit to Factory 28869 | -6/Hub_04(d) | Discovered exit to Factory (range 29) 28874 | -6/Hub_04(d) | Found Prototype Launcher 28875 | -6/Hub_04(d) | Identified Scatter Rocket Array 28910 | -6/Hub_04(d) | Garrison activated, responded to threat 29049 | -6/Hub_04(d) | Discovered exit to Factory (range 13) 29061 | -6/Hub_04(d) | Build established: Scavenger-Mutant 29080 | -6/Hub_04(d) | Garrison activated, responded to threat 29155 | -6/Hub_04(d) | Discovered exit to Factory (range 22) 29356 | -6/Hub_04(d) | Network Hub disabled 29430 | -6/Hub_04(d) | Network Hub disabled 29432 | -6/Hub_04(d) | Spotted Lightning 29432 | -6/Hub_04(d) | Spotted Lightning 29433 | -6/Hub_04(d) | Spotted Lightning 29513 | -6/Hub_04(d) | Destroyed Lightning 29616 | -6/Hub_04(d) | Destroyed Lightning 29632 | -6/Hub_04(d) | Spotted Lightning 29638 | -6/Hub_04(d) | Spotted Lightning 29643 | -6/Hub_04(d) | Spotted Lightning 29662 | -6/Hub_04(d) | First assault squad dispatched 29670 | -6/Hub_04(d) | Found Exp. EM Shield 29683 | -6/Hub_04(d) | Spotted B-75 Beast 29693 | -6/Hub_04(d) | Entered Factory 29693 | -5/Factory | Evolved 2 slots: Power x1, Utility x1 29767 | -5/Factory | Discovered new exit (range 15) 29772 | -5/Factory | Identified exit to Factory 29885 | -5/Factory | Identified exit to Upper Caves 29910 | -5/Factory | Build established: Scavenger-Tank 29972 | -5/Factory | Central database locked down 30050 | -5/Factory | Identified exit to Garrison 30103 | -5/Factory | Entered Garrison 30211 | -5/Garrison | Expanded RIF knowledge: Program Shield 30230 | -5/Garrison | Triggered checkpoint 30253 | -5/Garrison | Garrison Relay disabled 30328 | -5/Garrison | Triggered checkpoint 30414 | -5/Garrison | Spotted B-75 Beast 30461 | -5/Garrison | Destroyed B-75 Beast 30529 | -5/Garrison | Triggered checkpoint 30537 | -5/Garrison | Triggered checkpoint 30626 | -5/Garrison | Destroyed 15 combat bots 30717 | -5/Garrison | Discovered exit to Factory (range 9) 30748 | -5/Garrison | Triggered checkpoint 30787 | -5/Garrison | Garrison Relay disabled 30821 | -5/Garrison | Discovered exit to Factory (range 17) 30821 | -5/Garrison | Discovered exit to Factory (range 48) 30821 | -5/Garrison | Discovered exit to Factory (range 79) 31031 | -5/Garrison | Destroyed 8 combat bots 31135 | -5/Garrison | Triggered checkpoint 31169 | -5/Garrison | Triggered checkpoint 31384 | -5/Garrison | System corruption reached 10% 31605 | -5/Garrison | Triggered checkpoint 31683 | -5/Garrison | Expanded RIF knowledge: Threat Obfuscation 31727 | -5/Garrison | Entered Factory 31727 | -4/Factory | Accompanied by 7 allies 31727 | -4/Factory | Evolved 2 slots: Utility x2 31900 | -4/Factory | Repaired Centrium Medium Armor Plating 31939 | -4/Factory | Garrison activated, responded to threat 31970 | -4/Factory | Repaired Corrupted Adv. KE Penetrator 31973 | -4/Factory | Lost 3 allies 32033 | -4/Factory | Repaired Broken Adv. KE Penetrator 32083 | -4/Factory | Repaired Adv. KE Penetrator 32118 | -4/Factory | Unchained authorized (QV-33N) 32147 | -4/Factory | Identified exit to Garrison 32147 | -4/Factory | Entered Garrison 32147 | -4/Garrison | Accompanied by 2 allies 32328 | -4/Garrison | Rescued a captive Derelict 32328 | -4/Garrison | Rescued a captive Derelict 32342 | -4/Garrison | Garrison Relay disabled 32343 | -4/Garrison | Triggered checkpoint 32408 | -4/Garrison | Expanded RIF knowledge: Alert ID Control 32662 | -4/Garrison | Spotted B-86 Titan 32669 | -4/Garrison | Triggered checkpoint 32670 | -4/Garrison | Triggered checkpoint 32707 | -4/Garrison | Lost 3 allies 32876 | -4/Garrison | Triggered checkpoint 32943 | -4/Garrison | Destroyed 21 combat bots 32945 | -4/Garrison | Discovered new exit (range 42) 32945 | -4/Garrison | Discovered new exit (range 45) 32945 | -4/Garrison | Discovered new exit (range 19) 32960 | -4/Garrison | Build established: Scavenger-Gunner 33062 | -4/Garrison | Triggered checkpoint 33104 | -4/Garrison | Triggered checkpoint 33168 | -4/Garrison | Expanded RIF knowledge: Signal Jamming 33309 | -4/Garrison | Rewired Executioner 33315 | -4/Garrison | Rewired Executioner 33501 | -4/Garrison | Found Adv. Kinecellerator 33538 | -4/Garrison | Found Relay Coupler [Proto] 33561 | -4/Garrison | Found Relay Coupler [Proto] 33565 | -4/Garrison | Found Relay Coupler [Proto] 33760 | -4/Garrison | Triggered checkpoint 33825 | -4/Garrison | Triggered checkpoint 34174 | -4/Garrison | Build established: Bothacker-Mutant 34308 | -4/Garrison | Found embedded Infiltrators 34360 | -4/Garrison | Entered Research 34360 | -3/Research | Accompanied by 12 allies 34360 | -3/Research | Evolved 2 slots: Propulsion x2 34550 | -3/Research | Repaired Centrium Medium Armor Plating 34560 | -3/Research | Revision forces began assault on 0b10 34592 | -3/Research | Met up with Revision 17++ 34673 | -3/Research | Identified exit to Research 34722 | -3/Research | Identified exit to Testing 34746 | -3/Research | Build established: Bothacker-Tank 34834 | -3/Research | High security lockdown imminent 34881 | -3/Research | Lost 3 allies 34913 | -3/Research | Entered Testing 34913 | -3/Testing | Accompanied by 9 allies 34945 | -3/Testing | Found Prototype Processor 35001 | -3/Testing | Fabricated Exp. Transmission Jammer (x1) 35012 | -3/Testing | Identified Exp. Target Analyzer 35064 | -3/Testing | Lost 7 allies 35163 | -3/Testing | First assault squad dispatched 35227 | -3/Testing | Found Prototype Energy Gun 35227 | -3/Testing | Identified Tachyon Dispersion Ray 35441 | -3/Testing | Rewired 38-M5X(L) 35449 | -3/Testing | Rewired FT-JAH(L) 35538 | -3/Testing | High security lockdown imminent 35549 | -3/Testing | Identified exit to Garrison 35585 | -3/Testing | Found Prototype Energy Cannon 35585 | -3/Testing | Identified Null Cannon 35607 | -3/Testing | Entered Garrison 35607 | -3/Garrison | Accompanied by 3 allies 35719 | -3/Garrison | Triggered checkpoint 35762 | -3/Garrison | Discovered exit to Research (range 71) 35762 | -3/Garrison | Discovered exit to Research (range 49) 35762 | -3/Garrison | Discovered exit to Research (range 50) 35790 | -3/Garrison | Garrison Relay disabled 36036 | -3/Garrison | Spotted B-86 Titan 36067 | -3/Garrison | Allies destroyed B-86 Titan 36330 | -3/Garrison | Spotted B-86 Titan 36345 | -3/Garrison | Destroyed B-86 Titan 36361 | -3/Garrison | Found Relay Coupler [Proto] 36413 | -3/Garrison | Triggered checkpoint 36512 | -3/Garrison | Expanded RIF knowledge: Command Fork 36581 | -3/Garrison | Triggered checkpoint 36622 | -3/Garrison | Spotted Striker 36622 | -3/Garrison | Spotted Striker 36637 | -3/Garrison | Assimilated Striker with formatsys_high 36651 | -3/Garrison | Assimilated Striker with formatsys_high 36963 | -3/Garrison | Build established: Scavenger-Gunner 37015 | -3/Garrison | Found Relay Coupler [Proto] 37018 | -3/Garrison | Found Relay Coupler [Proto] 37129 | -3/Garrison | Triggered checkpoint 37171 | -3/Garrison | Learned Research security intel 37244 | -3/Garrison | Entered Research 37244 | -2/Research | Accompanied by 3 allies 37244 | -2/Research | Evolved 2 slots: Utility x2 37314 | -2/Research | Build established: Botlord-Gunner 37331 | -2/Research | Repaired Centrium Heavy Treads 37395 | -2/Research | Repaired Broken Adv. KE Penetrator 37400 | -2/Research | Unchained authorized (QV-33N) 37548 | -2/Research | Identified exit to Garrison 37589 | -2/Research | Garrison activated, responded to threat 37683 | -2/Research | Repaired Quantum Reactor+ 37709 | -2/Research | Entered Garrison 37709 | -2/Garrison | Accompanied by 2 allies 37724 | -2/Garrison | Lost 3 allies 37775 | -2/Garrison | Triggered checkpoint 37816 | -2/Garrison | QS Assembler disabled 38088 | -2/Garrison | Spotted B-90 Cyclops 38124 | -2/Garrison | Destroyed B-90 Cyclops 38233 | -2/Garrison | Triggered checkpoint 38366 | -2/Garrison | Discovered new exit (range 9) 38377 | -2/Garrison | Discovered new exit (range 74) 38377 | -2/Garrison | Discovered new exit (range 66) 38377 | -2/Garrison | Discovered new exit (range 14) 38502 | -2/Garrison | Triggered checkpoint 38636 | -2/Garrison | Learned Access security intel 38789 | -2/Garrison | Spotted B-86 Titan 38796 | -2/Garrison | Rewired B-75 Beast 38811 | -2/Garrison | Rewired B-75 Beast 38824 | -2/Garrison | Allies destroyed B-86 Titan 38931 | -2/Garrison | Triggered checkpoint 38997 | -2/Garrison | Expanded RIF knowledge: Zone Cloak 39013 | -2/Garrison | Triggered checkpoint 39068 | -2/Garrison | Rescued a captive Derelict 39069 | -2/Garrison | Rescued a captive Derelict 39085 | -2/Garrison | Garrison Relay disabled 39134 | -2/Garrison | Entered Access 39134 | -1/Access | Accompanied by 4 allies 39134 | -1/Access | Evolved 2 slots: Power x1, Utility x1 39287 | -1/Access | Unchained authorized (QV-33N) 39734 | -1/Access | Destroyed 8 combat bots 39884 | -1/Access | First assault squad dispatched 40554 | -1/Access | Build established: Botlord-Tank 40587 | -1/Access | Destroyed 11 combat bots 40709 | -1/Access | Discovered new exit (range 5) 40717 | -1/Access | Identified exit to Surface 40874 | -1/Access | High security lockdown imminent 40877 | -1/Access | System corruption reached 10% 40939 | -1/Access | Destroyed 10 combat bots 40954 | -1/Access | High security lockdown engaged 41011 | -1/Access | Energy Cycler disabled 41108 | -1/Access | Spotted Striker 41108 | -1/Access | Spotted Striker 41130 | -1/Access | Destroyed Striker 41141 | -1/Access | Destroyed Striker 41167 | -1/Access | Destroyed 9 combat bots 41314 | -1/Access | Lost 13 parts (4p3n4u2w) 41325 | -1/Access | DAS Turret deployed 41340 | -1/Access | Destroyed 12 combat bots 41359 | -1/Access | Lost 3 parts (1n2u) 41411 | -1/Access | DAS Turret deployed 41412 | *** | Escaped! Last Messages --------------- 41335_ G-73 Enforcer destroyed. 41336_ The unstable cave ceiling collapses. 41336_ R-10 Processor collects Hvy. Laser. 41337_ The unstable cave ceiling collapses. 41337_ Adv. KE Penetrator crushed. 41337_ G-73 Enforcer destroyed. 41338_ M-36 Artificer repairs M-36 Artificer Wheel. 41339_ L-61 Swordsman knocked back. 41341_ The unstable cave ceiling collapses. 41341_ I-47 Archangel sends out distress signal. 41343_ System corrupted: Component data lost. 41343_ DAS Turret destroyed. 41343_ M-36 Artificer repairs L-61 Swordsman. 41349_ The unstable cave ceiling collapses. 41352_ Dropped Graphene Brace. 41365_ System corrupted: Matter fused (-5). 41376_ Acquired 5 matter. 41410_ Dropped Deploy-a-Sentry. 41411_ DAS Turret deployed. [Achievement: Rambo] Map ----- +----------------------------------------------------+ | =% ## #????? #???????# # | | ##=## #????? #???????# # | | ###%## """""#??????#???????# !!# | | #?#=!+ """""#??????????????#"" ! # | | #?#%## """""#??????????????#""" ## | | #?#*## """""#??????????????#"R ## | | #?#[## """""#??????????????#""" ## "" | | ###+## ##?????????????#"" [ %# !="" | | ## # ####????????##!= #[= % | | ## #????????# [[* #[! %% | | "" #########+#+####################+########"###" | | "" ######## k !* | | F" + =% | | [[ ######## ## ## ""################### | | ! #??????# #### # ""#???????# ### | | #??????# #??## # ""#??????# #??# | | #??????# #?????# T#??????##???# | | ######## #?????# ""#???????????# ! | | # #?????# ""#???????????# | | # #????## ""##??????????# " | | ##### #######????# t #??????????# "" | | #??????????## ##??????????# " | | #???????????# #???????????# | | #???????????# #???????????# | | #???????????# #???????????# | | #???????????# @" #???????????####### | | #???????????# "" #?????????????????? | | #???????????# #?????????????????? | | #???????????# #?????????????????? | | """ #???????????# #?????????????????? | | """" #???????????#""""""""""#?????????????????? | | "F"" #????????????????????????????????????????? | | "" #????????????????????????????????????????? | | """ #????????????????????????????????????????? | | "" #????????????????????????????????????????? | | #????????????????????????????????????????? | | /????????????????????????????????????????? | | #????????????????????????????????????????? | | #### #????????????????????????????????????????? | | ???# #????????????????????????????????????????? | | ???# #????????????????????????????????????????? | | ???# ?????????????????????????????????????????? | | ???# ?????????????????????????????????????????? | | ???# ?????????????????????????????????????????? | | ??? ?????????????????????????????????????????? | | ??? ?????????????????????????????????????????? | | ??? ?????????????????????????????????????????? | | ??? ?????????????????????????????????????????? | | ???###+#?????????????????????????????????????????? | | ?????????????????????????????????????????????????? | +----------------------------------------------------+ Best States ------------- Heat Dissipation 166 Coolant Potential 65 Energy Generation 75 Energy Capacity 1350 Matter Stores 300 Matter Capacity 300 Sight Range 16 Robot Scan Range 20 Terrain Scan Density 210 Jamming Range 22 Base Temperature (-) 200 Armor Coverage 3650 Resistance: EM 90 Weapon Cycling 25 Evasion (%) 50 Targeting Accuracy 8 Core Analysis 6 Recoil Reduction 6 Matter Filtering 50 Kinecelleration 50 Offensive Hacking 14 Defensive Hacking 14 Relay Coupler Types 2 Relay Coupler Value 64 Item Schematics ----------------- Plasma Cutter | -8/Materials | Hacked Hvy. Treads | -7/Factory | Hacked Exp. Sensor Array | -6/Factory | Scanalyzed Prc. Energy Filter | -3/Testing | Archive Ionic Axe | -3/Testing | Archive Cld. Impulse Thruster | -3/Testing | Archive Exp. Utility Shielding | -3/Testing | Archive Imp. Thermal Defense Suite | -3/Testing | Archive Adv. Plasma Rifle | -3/Testing | Archive Exp. Targeting Computer | -3/Testing | Archive Enh. Multireflex Exoskeleton | -3/Testing | Archive Adv. Energy Well | -3/Testing | Archive Hvy. Wave Gun | -3/Testing | Archive Coolant Network | -3/Testing | Archive Multireflex Exoskeleton | -3/Testing | Archive Adv. Matter Compressor | -3/Testing | Archive Helical Railgun | -3/Testing | Archive Tri-rail Accelerator | -3/Testing | Archive Hellfire Missile Launcher | -3/Testing | Archive Robot Schematics ------------------ M-13 Machinist | -10/Materials | Hacked A-15 Conveyor | -3/Testing | Archive L-61 Swordsman | -3/Testing | Archive K-01 Serf | -3/Testing | Archive W-44 Eye | -3/Testing | Archive M-30 Cleanser | -3/Testing | Archive R-06 Scavenger | -3/Testing | Archive Fabricated ------------ Hyp. Gauss Rifle | x2 | -7/Factory | Preloaded Exp. Transmission Jammer | x1 | -3/Testing | Preloaded Repaired ---------- Lgt. Treads | 35% | -10/Materials Huge Storage Unit | 51% | -8/Materials Lgt. Treads | 15% | -8/Materials Prc. Beam Rifle | 18% | -8/Materials Hrd. Medium Armor Plating | 42% | -6/Factory Imp. Medium Armor Plating | 50% | -6/Factory Centrium Medium Armor Plating | 28% | -4/Factory Adv. KE Penetrator | 77% | -4/Factory | Corrupted Adv. KE Penetrator | 50% | -4/Factory | Broken Adv. KE Penetrator | 50% | -4/Factory Centrium Medium Armor Plating | 64% | -3/Research Centrium Heavy Treads | 38% | -2/Research Adv. KE Penetrator | 33% | -2/Research | Broken Quantum Reactor | 50% | -2/Research Studied --------- Lgt. Treads | -8/Materials | Hacked Arm. Treads | -8/Materials | Hacked Mni. Grenade Launcher | -8/Materials | Hacked Lrn. Missile Launcher | -7/Factory | Hacked Hyp. Gauss Rifle | -6/Factory | Hacked Fission Core | -6/Factory | Hacked Enh. Nova Cannon | -3/Testing | Hacked Quantum Reactor | -3/Testing | Hacked KE Penetrator | -1/Access | Hacked Alien Tech Used ----------------- None Achievements -------------- Explosive Keycard Maximum Efficiency Powerful Protocols Rambo Challenges ------------ None Game ------ Seed FortressPlatingProtection Manual? 0 Play Time 09:36:21 Cumulative 353.3 hours Start 2025.10.20 @ 23:55:22 End 2025.10.22 @ 21:42:13 Sessions 7 Manual Loads 0 Difficulty Rogue Special Mode None Game No. 137 Rogue 137 Adventurer 0 Explorer 0 Win Type 0 Total 8 Types 4/0/2/1/0/0/1/0/0/0 Lore% 65 Gallery% 75 Achievement% 51 Wizard Run 0 Options --------- Layout 0 ASCII 0 Keyboard 0 Movement Numpad Keybinds 1 Fullscreen 2 Font 18/X11 Map View 76x50 Zoom Use 0% Tactical HUD 1 Map Filters NONE Filters NONE Steam 1 RUN: 7b8902fa-01c2-4ddf-8a9d-6cb954082baf